Workbook

Sheet 資料勿動 (hidden)
A1: BillToCode | B1: BillToShortName | C1: 第一組 | D1: 第二組 | E1: 部門名稱 | F1: 區 | G1: 區1 | H1: BUYING_GROUP | I1: BUYING_GROUP-1 | J1: SalesChannelName | K1: SalesAR | L1: ARSalesChannel | M1: =SUM(K:K) -> 2236431966
A2: TW002512001B | B2: ONETIMECUSTOMER | G2: ETC | H2: ETC | I2: ETC_TT | J2: TW002512001B | K2: =VLOOKUP(A2,[2]工作表4!$A$4:$F$511,6,0) -> 83852 | L2: ETC | M2: 2236431960
A3: TW006291001B | B3: ONETIMECUSTOMER | G3: ETC | H3: ETC | I3: ETC_TT | J3: TW006291001B | M3: =M1-M2 -> 6
A4: TW002605001B | B4: =VLOOKUP(A4,'[3]Bill+Ship to Code (Active) 12'!$B$1:$D$3073,3,0) -> ONE TIME SERVICE FOR TYPE 2 | G4: ETC | H4: ETC | I4: ETC_TT | J4: TW002605001B | K4: =VLOOKUP(A4,[2]工作表4!$A$4:$F$511,6,0) -> 3716300 | L4: SVC
A5: TW003659001B | B5: =VLOOKUP(A5,'[3]Bill+Ship to Code (Active) 12'!$B$1:$D$3073,3,0) -> ONE TIME SERVICE E-INVOICE FOR TYPE2 | G5: ETC | H5: ETC | I5: ETC_TT | J5: TW003659001B | K5: =VLOOKUP(A5,[2]工作表4!$A$4:$F$511,6,0) -> 299550 | L5: SVC
A6: TW005429001B | B6: =VLOOKUP(A6,'[3]Bill+Ship to Code (Active) 12'!$B$1:$D$3073,3,0) -> One time_SVC | G6: SVC | H6: SVC | I6: SVC | J6: TW005429001B | K6: =VLOOKUP(A6,[2]工作表4!$A$4:$F$511,6,0) -> 1573990 | L6: SVC
A7: TW005433001B | G7: ETC | H7: ETC | I7: ETC_TT | J7: TW005433001B | K7: =VLOOKUP(A7,[2]工作表4!$A$4:$F$511,6,0) -> 4662036 | L7: ETC
A8: TW004851001B | B8: 億電通國際 | G8: SVC | H8: SVC | I8: SVC | J8: TW004851001B | K8: =VLOOKUP(A8,[2]工作表4!$A$4:$F$511,6,0) -> 1000572 | L8: SVC
A9: CN000116066B | G9: ETC | H9: ETC | I9: ETC_TT | J9: CN000116066B | L9: ETC
A10: KR000001066B | B10: LGEHQ | G10: ETC | H10: ETC | I10: ETC_TT | J10: KR000001066B | K10: =VLOOKUP(A10,[2]工作表4!$A$4:$F$511,6,0) -> 358835 | L10: ETC
A11: PH000001009B | B11: LGEPH | G11: ETC | H11: ETC | I11: ETC_TT | J11: PH000001009B
A12: VN007883040B | B12: LGEVH | G12: ETC | H12: ETC | I12: ETC_TT | J12: VN007883040B
A13: ZA000001060B | B13: LGESA | G13: ETC | H13: ETC | I13: ETC_TT | J13: ZA000001060B | L13: ETC
A14: MX011038033B | B14: LGEMN | G14: ETC | H14: ETC | I14: ETC_TT | J14: MX011038033B | K14: =VLOOKUP(A14,[2]工作表4!$A$4:$F$511,6,0) -> 2376490 | L14: ETC
A15: CN000135060B | B15: LGEPN | G15: ETC | H15: ETC | I15: ETC_TT | J15: CN000135060B | L15: ETC
A16: SG001062061B | G16: ETC | H16: ETC | I16: ETC_TT | J16: SG001062061B | K16: =VLOOKUP(A16,[2]工作表4!$A$4:$F$511,6,0) -> 0
A17: TW002070001B | B17: 來福電器商行 | C17: 19600401 | D17: 08026783 | E17: 高屏營銷處 | F17: GWB | G17: 高屏 | H17: DEALER_TT | I17: DLC_TT | J17: TW002070001B | K17: =VLOOKUP(A17,[2]工作表4!$A$4:$F$511,6,0) -> 201241 | L17: 高屏營銷處
A18: TW002073001B | B18: 貴櫻音響 | C18: 19660906 | D18: 95987415 | E18: 高屏營銷處 | F18: GWB | G18: 高屏 | H18: DEALER_TT | I18: DLC_TT
A19: TW002076001B | B19: 億興電業行 | C19: 19640715 | D19: 70940630 | E19: 高屏營銷處 | F19: GWB | G19: 高屏 | H19: DEALER_TT | I19: DLC_TT | J19: TW002076001B | K19: =VLOOKUP(A19,[2]工作表4!$A$4:$F$511,6,0) -> 117907 | L19: 高屏營銷處
A20: TW002077001B | B20: 信一電器行 | C20: 19520302 | D20: 91730759 | E20: 高屏營銷處 | F20: GWB | G20: 高屏 | H20: DEALER_TT | I20: DLC_TT | J20: TW002077001B | K20: =VLOOKUP(A20,[2]工作表4!$A$4:$F$511,6,0) -> 27198 | L20: 高屏營銷處
A21: TW002079001B | B21: 立陞電器 | C21: 19600710 | D21: 23956174 | E21: 高屏營銷處 | F21: GWB | G21: 高屏 | H21: DEALER_TT | I21: DLC_TT | J21: TW002079001B | K21: =VLOOKUP(A21,[2]工作表4!$A$4:$F$511,6,0) -> 52884 | L21: 高屏營銷處
A22: TW002083001B | B22: 路得企業有限公司 | C22: 19600503 | D22: 84672419 | E22: 高屏營銷處 | F22: GWB | G22: 高屏 | H22: DEALER_TT | I22: SPD_TT | J22: TW002083001B | K22: =VLOOKUP(A22,[2]工作表4!$A$4:$F$511,6,0) -> 167990 | L22: 高屏營銷處
A23: TW002084001B | B23: 新進發企業行 | C23: 19520414 | D23: 90802950 | E23: 高屏營銷處 | F23: GWB | G23: 高屏 | H23: DEALER_TT | I23: DLC_TT
A24: TW002085001B | B24: 皇昇電器行 | C24: 19600320 | D24: 08069071 | E24: 高屏營銷處 | F24: GWB | G24: 高屏 | H24: DEALER_TT | I24: DLC_TT
A25: TW002090001B | B25: 慶旺電器有限公司 | C25: hw7498625 | D25: hw16826605 | E25: 高屏營銷處 | F25: GWB | G25: 高屏 | H25: DEALER_TT | I25: DLC_TT | J25: TW002090001B | K25: =VLOOKUP(A25,[2]工作表4!$A$4:$F$511,6,0) -> 0 | L25: 高屏營銷處
A26: TW002091001B | B26: 人友電器行 | C26: 19601028 | D26: 77003547 | E26: 高屏營銷處 | F26: GWB | G26: 高屏 | H26: DEALER_TT | I26: DLC_TT | J26: TW002091001B | K26: =VLOOKUP(A26,[2]工作表4!$A$4:$F$511,6,0) -> 0 | L26: 高屏營銷處
A27: TW002093001B | B27: 鴻嘉電化商行 | C27: 19480106 | D27: 06696505 | E27: 高屏營銷處 | F27: GWB | G27: 高屏 | H27: DEALER_TT | I27: DCS_TT | J27: TW002093001B | K27: =VLOOKUP(A27,[2]工作表4!$A$4:$F$511,6,0) -> 342130 | L27: 高屏營銷處
A28: TW002094001B | B28: 力利企業有限公司 | C28: 19660912 | D28: 16683445 | E28: 高屏營銷處 | F28: GWB | G28: 高屏 | H28: DEALER_TT | I28: DLC_TT | J28: TW002094001B | K28: =VLOOKUP(A28,[2]工作表4!$A$4:$F$511,6,0) -> 54639 | L28: 高屏營銷處
A29: TW002099001B | B29: 淙勝電器有限公司 | C29: 19580807 | D29: 16476213 | E29: 高屏營銷處 | F29: GWB | G29: 高屏 | H29: DEALER_TT | I29: DLC_TT | J29: TW002099001B | L29: 高屏營銷處
A30: TW002104001B | B30: 三豐電器行 | C30: 19681110 | D30: 19661607 | E30: 高屏營銷處 | F30: GWB | G30: 高屏 | H30: DEALER_TT | I30: DLC_TT | J30: TW002104001B | K30: =VLOOKUP(A30,[2]工作表4!$A$4:$F$511,6,0) -> 0 | L30: 高屏營銷處
A31: TW002105001B | B31: 上眾電器有限公司 | C31: 19600908 | D31: 97408406 | E31: 高屏營銷處 | F31: GWB | G31: 高屏 | H31: DEALER_TT | I31: DLC_TT | J31: TW002105001B | K31: =VLOOKUP(A31,[2]工作表4!$A$4:$F$511,6,0) -> 1004579 | L31: 高屏營銷處
A32: TW002106001B | B32: 大時代量販家電 | C32: 19670921 | D32: 07910980 | E32: 高屏營銷處 | F32: GWB | G32: 高屏 | H32: DEALER_TT | I32: SPD_TT | J32: TW002106001B | K32: =VLOOKUP(A32,[2]工作表4!$A$4:$F$511,6,0) -> 2096238 | L32: 高屏營銷處
A33: TW002108001B | B33: 春聲電器有限公司 | C33: 19590922 | D33: 86633356 | E33: 高屏營銷處 | F33: GWB | G33: 高屏 | H33: DEALER_TT | I33: DCS_TT | J33: TW002108001B | K33: =VLOOKUP(A33,[2]工作表4!$A$4:$F$511,6,0) -> 278676 | L33: 高屏營銷處
A34: TW002118001B | B34: 福總電業社 | C34: 19551001 | D34: 08519549 | E34: 高屏營銷處 | F34: GWB | G34: 高屏 | H34: DEALER_TT | I34: DLC_TT | J34: TW002118001B | K34: =VLOOKUP(A34,[2]工作表4!$A$4:$F$511,6,0) -> 0 | L34: 高屏營銷處
A35: TW002119001B | B35: 聯立貿易有限公司 | C35: 19520813 | D35: 70405187 | E35: 高屏營銷處 | F35: GWB | G35: 高屏 | H35: DEALER_TT | I35: DCS_TT | J35: TW002119001B | K35: =VLOOKUP(A35,[2]工作表4!$A$4:$F$511,6,0) -> 550594 | L35: 高屏營銷處
A36: TW002130001B | B36: 百鈴電器影視有限公司 | C36: 19530824 | D36: 72192956 | E36: 嘉南營銷處 | F36: DNB | G36: 嘉南 | H36: DEALER_TT | I36: DCS_TT | J36: TW002130001B | K36: =VLOOKUP(A36,[2]工作表4!$A$4:$F$511,6,0) -> 310080 | L36: 嘉南營銷處
A37: TW002140001B | B37: 大時代量販家電 | C37: 19681011 | D37: 87692727 | E37: 嘉南營銷處 | F37: DNB | G37: 嘉南 | H37: DEALER_TT | I37: DCS_TT | J37: TW002140001B | K37: =VLOOKUP(A37,[2]工作表4!$A$4:$F$511,6,0) -> 959651 | L37: 嘉南營銷處
A38: TW002141001B | B38: 冠銓電器有限公司 | C38: 19630606 | D38: 16860835 | E38: 嘉南營銷處 | F38: DNB | G38: 嘉南 | H38: DEALER_TT | I38: SPD_TT | J38: TW002141001B | K38: =VLOOKUP(A38,[2]工作表4!$A$4:$F$511,6,0) -> 1940783 | L38: 嘉南營銷處
A39: TW002143001B | B39: 全省電器有限公司 | C39: 19701230 | D39: 69689334 | E39: 嘉南營銷處 | F39: DNB | G39: 嘉南 | H39: DEALER_TT | I39: SPD_TT | J39: TW002143001B | K39: =VLOOKUP(A39,[2]工作表4!$A$4:$F$511,6,0) -> 3287840 | L39: 嘉南營銷處
A40: TW002144001B | B40: 歐鋒電器行 | C40: 19630108 | D40: 78995756 | E40: 嘉南營銷處 | F40: DNB | G40: 嘉南 | H40: DEALER_TT | I40: DCS_TT | J40: TW002144001B | K40: =VLOOKUP(A40,[2]工作表4!$A$4:$F$511,6,0) -> 221095 | L40: 嘉南營銷處
A41: TW002146001B | B41: 宇騰電器行 | C41: 19630910 | D41: 78630074 | E41: 嘉南營銷處 | F41: DNB | G41: 嘉南 | H41: DEALER_TT | I41: DCS_TT
A42: TW002150001B | B42: 宏偉電器行 | C42: 19610121 | D42: 06504730 | E42: 嘉南營銷處 | F42: DNB | G42: 嘉南 | H42: DEALER_TT | I42: DCS_TT | J42: TW002150001B | K42: =VLOOKUP(A42,[2]工作表4!$A$4:$F$511,6,0) -> 307249 | L42: 嘉南營銷處
A43: TW002151001B | B43: 松寶電器行 | C43: 19530411 | D43: 85741379 | E43: 嘉南營銷處 | F43: DNB | G43: 嘉南 | H43: DEALER_TT | I43: DLC_TT | J43: TW002151001B | K43: =VLOOKUP(A43,[2]工作表4!$A$4:$F$511,6,0) -> 37237 | L43: 嘉南營銷處
A44: TW002152001B | B44: 世英電業行 | C44: 19510120 | D44: 69310389 | E44: 嘉南營銷處 | F44: DNB | G44: 嘉南 | H44: DEALER_TT | I44: DCS_TT
A45: TW002154001B | B45: 信福電器有限公司 | C45: 19710107 | D45: 69279211 | E45: 嘉南營銷處 | F45: DNB | G45: 嘉南 | H45: DEALER_TT | I45: DCS_TT | J45: TW002154001B | K45: =VLOOKUP(A45,[2]工作表4!$A$4:$F$511,6,0) -> 1724808 | L45: 嘉南營銷處
A46: TW002155001B | B46: 老李電器企業有限公司 | C46: 19541025 | D46: 06375829 | E46: 嘉南營銷處 | F46: DNB | G46: 嘉南 | H46: DEALER_TT | I46: DCS_TT | J46: TW002155001B | K46: =VLOOKUP(A46,[2]工作表4!$A$4:$F$511,6,0) -> 46508 | L46: 嘉南營銷處
A47: TW002158001B | B47: 中美電器行 | C47: 19640417 | D47: 20198584 | E47: 嘉南營銷處 | F47: DNB | G47: 嘉南 | H47: DEALER_TT | I47: DLC_TT | J47: TW002158001B | K47: =VLOOKUP(A47,[2]工作表4!$A$4:$F$511,6,0) -> 64675 | L47: 嘉南營銷處
A48: TW002173001B | B48: 泰欣電器行 | C48: 19601208 | D48: 06556096 | E48: 嘉南營銷處 | F48: DNB | G48: 嘉南 | H48: DEALER_TT | I48: SPD_TT | J48: TW002173001B | K48: =VLOOKUP(A48,[2]工作表4!$A$4:$F$511,6,0) -> 417891 | L48: 嘉南營銷處
A49: TW002174001B | B49: 強尼電器百貨大批發 | C49: 19651231 | D49: 06583544 | E49: 嘉南營銷處 | F49: DNB | G49: 嘉南 | H49: DEALER_TT | I49: DLC_TT
A50: TW002176001B | B50: 益昌電氣行 | C50: 19720603 | D50: 72166747 | E50: 嘉南營銷處 | F50: DNB | G50: 嘉南 | H50: DEALER_TT | I50: DCS_TT | J50: TW002176001B | K50: =VLOOKUP(A50,[2]工作表4!$A$4:$F$511,6,0) -> 320652 | L50: 嘉南營銷處
A51: TW002192001B | B51: 和春電器行 | C51: 19681015 | D51: 64910498 | E51: 嘉南營銷處 | F51: DNB | G51: 嘉南 | H51: DEALER_TT | I51: DLC_TT | J51: TW002192001B | K51: =VLOOKUP(A51,[2]工作表4!$A$4:$F$511,6,0) -> 49241 | L51: 嘉南營銷處
A52: TW002194001B | B52: 宏達電氣行 | C52: 19780611 | D52: 64862377 | E52: 台中營銷處 | F52: DJB | G52: 台中 | H52: DEALER_TT | I52: DCS_TT | J52: TW002194001B | K52: =VLOOKUP(A52,[2]工作表4!$A$4:$F$511,6,0) -> 305704 | L52: 台中營銷處
A53: TW002201001B | B53: 中聯發國際企業有限公司 | C53: TW002201 | D53: 16402395 | E53: 台中營銷處 | F53: DJB | G53: 台中 | H53: DEALER_TT | I53: DLC_TT | J53: TW002201001B | K53: =VLOOKUP(A53,[2]工作表4!$A$4:$F$511,6,0) -> 180104 | L53: 台中營銷處
A54: TW002204001B | B54: 鑫昌電器有限公司 | C54: 22789515 | D54: 22791019 | E54: 台中營銷處 | F54: DJB | G54: 台中 | H54: DEALER_TT | I54: SPD_TT | J54: TW002204001B | L54: 台中營銷處
A55: TW002206001B | B55: 祥峰電器行 | C55: TW002206 | D55: 61841075 | E55: 台中營銷處 | F55: DJB | G55: 台中 | H55: DEALER_TT | I55: DLC_TT | J55: TW002206001B | K55: =VLOOKUP(A55,[2]工作表4!$A$4:$F$511,6,0) -> 130106 | L55: 台中營銷處
A56: TW002214001B | B56: 欣益電器行 | C56: TW002214 | D56: 12043905 | E56: 台中營銷處 | F56: DJB | G56: 台中 | H56: DEALER_TT | I56: SPD_TT | J56: TW002214001B | K56: =VLOOKUP(A56,[2]工作表4!$A$4:$F$511,6,0) -> 701227 | L56: 台中營銷處
A57: TW002223001B | B57: 長紅電子專賣店 | C57: 19680422 | D57: 92812618 | E57: 台中營銷處 | F57: DJB | G57: 台中 | H57: DEALER_TT | I57: DLC_TT | J57: TW002223001B | K57: =VLOOKUP(A57,[2]工作表4!$A$4:$F$511,6,0) -> 0 | L57: 台中營銷處
A58: TW002228001B | B58: 嘉聲電器有限公司 | C58: TW002228 | D58: 22960798 | E58: 台中營銷處 | F58: DJB | G58: 台中 | H58: DEALER_TT | I58: DLC_TT
A59: TW002229001B | B59: 宏昌電器行 | C59: 19590618 | D59: 24151920 | E59: 台中營銷處 | F59: DJB | G59: 台中 | H59: DEALER_TT | I59: DLC_TT | J59: TW002229001B | K59: =VLOOKUP(A59,[2]工作表4!$A$4:$F$511,6,0) -> 75808 | L59: 台中營銷處
A60: TW002239001B | B60: 明信電子專賣店 | C60: 19641206 | D60: 77109680 | E60: 台中營銷處 | F60: DJB | G60: 台中 | H60: DEALER_TT | I60: DLC_TT | J60: TW002239001B | K60: =VLOOKUP(A60,[2]工作表4!$A$4:$F$511,6,0) -> 20636 | L60: 台中營銷處
A61: TW002245001B | B61: 明嘉電器 | C61: TW002245 | D61: 23077347 | E61: 台中營銷處 | F61: DJB | G61: 台中 | H61: DEALER_TT | I61: DLC_TT
A62: TW002248001B | B62: 盟音電器 | C62: TW002248 | D62: 84181461 | E62: 台中營銷處 | F62: DJB | G62: 台中 | H62: DEALER_TT | I62: DLC_TT
A63: TW002250001B | B63: 格愛陞有限公司 | C63: TW002250 | D63: 84694814 | E63: 台中營銷處 | F63: DJB | G63: 台中 | H63: DEALER_TT | I63: DCS_TT
A64: TW002252001B | B64: 沅富電器行 | C64: 19611227 | D64: 18334578 | E64: 台中營銷處 | F64: DJB | G64: 台中 | H64: DEALER_TT | I64: SPD_TT | J64: TW002252001B | K64: =VLOOKUP(A64,[2]工作表4!$A$4:$F$511,6,0) -> 518897 | L64: 台中營銷處
A65: TW002257001B | B65: 恆信電器有限公司 | C65: TW002257 | D65: 89817694 | E65: 台中營銷處 | F65: DJB | G65: 台中 | H65: DEALER_TT | I65: DLC_TT | J65: TW002257001B | K65: =VLOOKUP(A65,[2]工作表4!$A$4:$F$511,6,0) -> 35449 | L65: 台中營銷處
A66: TW002261001B | B66: 美齊富有限公司 | C66: 23893338 | D66: 23811788 | E66: 台中營銷處 | F66: DJB | G66: 台中 | H66: DEALER_TT | I66: DLC_TT | J66: TW002261001B | K66: =VLOOKUP(A66,[2]工作表4!$A$4:$F$511,6,0) -> 207668 | L66: 台中營銷處
A67: TW002261002B | B67: 美齊富有限公司 | C67: XXXXXXXX | D67: XXXXXXXX | E67: SAC | F67: ID&SAC | G67: SAC Sales | H67: B2B_TT | I67: CAC_TT
A68: TW002262001B | B68: 太子電業行 | C68: TW002262 | D68: 77685331 | E68: 台中營銷處 | F68: DJB | G68: 台中 | H68: DEALER_TT | I68: DCS_TT | J68: TW002262001B | K68: =VLOOKUP(A68,[2]工作表4!$A$4:$F$511,6,0) -> 1146004 | L68: 台中營銷處
A69: TW002265001B | B69: 大謄電器有限公司 | C69: TW002265 | D69: 22915458 | E69: 台中營銷處 | F69: DJB | G69: 台中 | H69: DEALER_TT | I69: DLC_TT | J69: TW002265001B | K69: =VLOOKUP(A69,[2]工作表4!$A$4:$F$511,6,0) -> 27198 | L69: 台中營銷處
A70: TW002267001B | B70: 東林電器有限公司 | C70: 19531101 | D70: 97482257 | E70: 台中營銷處 | F70: DJB | G70: 台中 | H70: DEALER_TT | I70: DLC_TT | J70: TW002267001B | L70: 台中營銷處
A71: TW002268001B | B71: 佳億電器量販 | C71: TW002268 | D71: 77249459 | E71: 台中營銷處 | F71: DJB | G71: 台中 | H71: DEALER_TT | I71: DLC_TT
A72: TW002277001B | B72: 家晟電器 | C72: TW002277 | D72: 22401937 | E72: 台中營銷處 | F72: DJB | G72: 台中 | H72: DEALER_TT | I72: DLC_TT
A73: TW002288001B | B73: 幸韻電器有限公司 | C73: 19661201 | D73: 89328106 | E73: 桃竹營銷處 | F73: DWB | G73: 桃竹 | H73: DEALER_TT | I73: SPD_TT | J73: TW002288001B | K73: =VLOOKUP(A73,[2]工作表4!$A$4:$F$511,6,0) -> 1320236 | L73: 桃竹營銷處
A74: TW002291001B | B74: 金一電器有限公司 | C74: 19570623 | D74: 22137992 | E74: 桃竹營銷處 | F74: DWB | G74: 桃竹 | H74: DEALER_TT | I74: SPD_TT | J74: TW002291001B | K74: =VLOOKUP(A74,[2]工作表4!$A$4:$F$511,6,0) -> 2762555 | L74: 桃竹營銷處
A75: TW002295001B | B75: 金昇電器有限公司 | C75: 19691111 | D75: 49651654 | E75: 桃竹營銷處 | F75: DWB | G75: 桃竹 | H75: DEALER_TT | I75: DLC_TT
A76: TW002305001B | B76: 皇典電器行 | C76: 19680201 | D76: 78544155 | E76: 桃竹營銷處 | F76: DWB | G76: 桃竹 | H76: DEALER_TT | I76: DLC_TT | J76: TW002305001B | K76: =VLOOKUP(A76,[2]工作表4!$A$4:$F$511,6,0) -> 78184 | L76: 桃竹營銷處
A77: TW002315001B | B77: 銓日電器行 | C77: 19670416 | D77: 73800090 | E77: 桃竹營銷處 | F77: DWB | G77: 桃竹 | H77: DEALER_TT | I77: DLC_TT | K77: =VLOOKUP(A77,[2]工作表4!$A$4:$F$511,6,0) -> 26235 | L77: 桃竹營銷處
A78: TW002324001B | B78: 兆宏電業行 | C78: 19640130 | D78: 47039765 | E78: 桃竹營銷處 | F78: DWB | G78: 桃竹 | H78: DEALER_TT | I78: DLC_TT | J78: TW002324001B | K78: =VLOOKUP(A78,[2]工作表4!$A$4:$F$511,6,0) -> 198792 | L78: 桃竹營銷處
A79: TW002331001B | B79: 同慶電氣行 | C79: 19530412 | D79: 43779752 | E79: 桃竹營銷處 | F79: DWB | G79: 桃竹 | H79: DEALER_TT | I79: DLC_TT | J79: TW002331001B | K79: =VLOOKUP(A79,[2]工作表4!$A$4:$F$511,6,0) -> 49177 | L79: 桃竹營銷處
A80: TW002338001B | B80: 福娥電業行 | C80: 19580811 | D80: 13513828 | E80: 桃竹營銷處 | F80: DWB | G80: 桃竹 | H80: DEALER_TT | I80: DCS_TT | J80: TW002338001B | K80: =VLOOKUP(A80,[2]工作表4!$A$4:$F$511,6,0) -> 252068 | L80: 桃竹營銷處
A81: TW002343001B | B81: 名富電器行 | C81: 19500615 | D81: 45162367 | E81: 桃竹營銷處 | F81: DWB | G81: 桃竹 | H81: DEALER_TT | I81: DCS_TT | J81: TW002343001B | K81: =VLOOKUP(A81,[2]工作表4!$A$4:$F$511,6,0) -> 169780 | L81: 桃竹營銷處
A82: TW002347001B | B82: 得興電器有限公司 | C82: 19690802 | D82: 89730711 | E82: 桃竹營銷處 | F82: DWB | G82: 桃竹 | H82: DEALER_TT | I82: DCS_TT | J82: TW002347001B | K82: =VLOOKUP(A82,[2]工作表4!$A$4:$F$511,6,0) -> 3486453 | L82: 桃竹營銷處
A83: TW002349001B | B83: 金長益電器有限公司 | C83: 19640714 | D83: 16908253 | E83: 桃竹營銷處 | F83: DWB | G83: 桃竹 | H83: DEALER_TT | I83: DLC_TT | J83: TW002349001B | K83: =VLOOKUP(A83,[2]工作表4!$A$4:$F$511,6,0) -> 1458139 | L83: 桃竹營銷處
A84: TW002351001B | B84: 雅光有限公司 | C84: 19590805 | D84: 01189353 | E84: 台北營銷處 | F84: TPH | G84: 台北 | H84: DEALER_TT | I84: SPD_TT | J84: TW002351001B | K84: =VLOOKUP(A84,[2]工作表4!$A$4:$F$511,6,0) -> 6027638 | L84: 台北營銷處
A85: TW002351002B | B85: 雅光有限公司 | C85: XXXXXXXX | D85: XXXXXXXX | E85: SAC | F85: ID&SAC | G85: SAC Sales | H85: B2B_TT | I85: CAC_TT
A86: TW002352001B | B86: 佳禾貿易有限公司 | C86: 19501112 | D86: 97310065 | E86: 台北營銷處 | F86: TPH | G86: 台北 | H86: DEALER_TT | I86: DLC_TT | J86: TW002352001B | K86: =VLOOKUP(A86,[2]工作表4!$A$4:$F$511,6,0) -> 65762 | L86: 台北營銷處
A87: TW002359001B | B87: 宏仁電器行 | C87: 19690518 | D87: 92883893 | E87: 台北營銷處 | F87: TPH | G87: 台北 | H87: DEALER_TT | I87: DLC_TT | J87: TW002359001B | L87: 台北營銷處
A88: TW002363001B | B88: 吳頡興電器企業有限公司 | C88: 19551115 | D88: 22905634 | E88: 台北營銷處 | F88: TPH | G88: 台北 | H88: DEALER_TT | I88: DLC_TT | J88: TW002363001B | K88: =VLOOKUP(A88,[2]工作表4!$A$4:$F$511,6,0) -> 131729 | L88: 台北營銷處
A89: TW002368001B | B89: 健融電器行 | C89: 19590810 | D89: 02153403 | E89: 台北營銷處 | F89: TPH | G89: 台北 | H89: DEALER_TT | I89: DLC_TT | J89: TW002368001B | L89: 台北營銷處
A90: TW002372001B | B90: 承德國際有限公司 | C90: 19661020 | D90: 89960924 | E90: 台北營銷處 | F90: TPH | G90: 台北 | H90: DEALER_TT | I90: DCS_TT | J90: TW002372001B | K90: =VLOOKUP(A90,[2]工作表4!$A$4:$F$511,6,0) -> 971200 | L90: 台北營銷處
A91: TW002375001B | B91: 建而福電器有限公司 | C91: 19470824 | D91: 33842192 | E91: 台北營銷處 | F91: TPH | G91: 台北 | H91: DEALER_TT | I91: DLC_TT | J91: TW002375001B | L91: 台北營銷處
A92: TW002376001B | B92: 新弘貿易有限公司 | C92: 19590115 | D92: 23004274 | E92: 台北營銷處 | F92: TPH | G92: 台北 | H92: DEALER_TT | I92: SPD_TT | J92: TW002376001B | K92: =VLOOKUP(A92,[2]工作表4!$A$4:$F$511,6,0) -> 1099649 | L92: 台北營銷處
A93: TW002378001B | B93: 上順電器有限公司 | C93: 19550916 | D93: 23815317 | E93: 台北營銷處 | F93: TPH | G93: 台北 | H93: DEALER_TT | I93: DCS_TT | J93: TW002378001B | K93: =VLOOKUP(A93,[2]工作表4!$A$4:$F$511,6,0) -> 94217 | L93: 台北營銷處
A94: TW002381001B | B94: 萬豐視聽電業有限公司 | C94: 19620320 | D94: 22592990 | E94: 台北營銷處 | F94: TPH | G94: 台北 | H94: DEALER_TT | I94: DCS_TT | J94: TW002381001B | K94: =VLOOKUP(A94,[2]工作表4!$A$4:$F$511,6,0) -> 1380356 | L94: 台北營銷處
A95: TW002382001B | B95: 訊立電器有限公司 | C95: 19560601 | D95: 12710694 | E95: 台北營銷處 | F95: TPH | G95: 台北 | H95: DEALER_TT | I95: DLC_TT | J95: TW002382001B | L95: 台北營銷處
A96: TW002387001B | B96: 鎮吉實業 | C96: 19651125 | D96: 70662642 | E96: 台北營銷處 | F96: TPH | G96: 台北 | H96: DEALER_TT | I96: DCS_TT | K96: =VLOOKUP(A96,[2]工作表4!$A$4:$F$511,6,0) -> 2522740
A97: TW002391001B | B97: 益大家電事業有限公司 | C97: 24239141 | D97: 22573614 | E97: 台北營銷處 | F97: TPH | G97: 台北 | H97: DEALER_TT | I97: DLC_TT | J97: TW002391001B | K97: =VLOOKUP(A97,[2]工作表4!$A$4:$F$511,6,0) -> 21721 | L97: 台北營銷處
A98: TW002398001B | B98: 彥昌電器行 | C98: 26416154 | D98: 02300192 | E98: 台北營銷處 | F98: TPH | G98: 台北 | H98: DEALER_TT | I98: DLC_TT | J98: TW002398001B | L98: 台北營銷處
A99: TW002400001B | B99: 金亞實業有限公司 | C99: 26473088 | D99: 89230504 | E99: 台北營銷處 | F99: TPH | G99: 台北 | H99: DEALER_TT | I99: DCS_TT | J99: TW002400001B | K99: =VLOOKUP(A99,[2]工作表4!$A$4:$F$511,6,0) -> 5802662 | L99: 台北營銷處
A100: TW002409001B | B100: 太空電器行 | C100: 19551106 | D100: 77300011 | E100: 高屏營銷處 | F100: GWB | G100: 高屏 | H100: DEALER_TT | I100: DLC_TT | J100: TW002409001B | L100: 高屏營銷處
A101: TW002409002B | B101: 太空電器行 | C101: XXXXXXXX | D101: XXXXXXXX | E101: SAC | F101: ID&SAC | G101: SAC Sales | H101: B2B_TT | I101: CAC_TT
A102: TW002410001B | B102: 全新電器有限公司 | C102: 19510722 | D102: 20760963 | E102: 台北營銷處 | F102: TPH | G102: 台北 | H102: DEALER_TT | I102: DLC_TT
A103: TW002411001B | B103: 金門電器行 | C103: 19530605 | D103: 77265149 | E103: 高屏營銷處 | F103: GWB | G103: 高屏 | H103: DEALER_TT | I103: DCS_TT | J103: TW002411001B | K103: =VLOOKUP(A103,[2]工作表4!$A$4:$F$511,6,0) -> 583945 | L103: 高屏營銷處
A104: TW002416001B | B104: 國寶電業行 | C104: 19680525 | D104: 12180750 | E104: 台北營銷處 | F104: TPH | G104: 台北 | H104: DEALER_TT | I104: DLC_TT | J104: TW002416001B | L104: 台北營銷處
A105: TW002420001B | B105: 高登電器有限公司 | C105: 19551029 | D105: 22629645 | E105: 台北營銷處 | F105: TPH | G105: 台北 | H105: DEALER_TT | I105: DLC_TT | J105: TW002420001B | K105: =VLOOKUP(A105,[2]工作表4!$A$4:$F$511,6,0) -> 356886 | L105: 台北營銷處
A106: TW002427001B | B106: 國豐電業商行 | C106: 19551014 | D106: 94836355 | E106: 台北營銷處 | F106: TPH | G106: 台北 | H106: DEALER_TT | I106: DLC_TT | J106: TW002427001B | L106: 台北營銷處
A107: TW002428001B | B107: 精實電器行 | C107: 19740715 | D107: 64803602 | E107: 台北營銷處 | F107: TPH | G107: 台北 | H107: DEALER_TT | I107: DLC_TT | J107: TW002428001B | K107: =VLOOKUP(A107,[2]工作表4!$A$4:$F$511,6,0) -> 63415 | L107: 台北營銷處
A108: TW002431001B | B108: 一世代電氣行 | C108: 19620315 | D108: 18063076 | E108: 台北營銷處 | F108: TPH | G108: 台北 | H108: DEALER_TT | I108: DCS_TT | J108: TW002431001B | K108: =VLOOKUP(A108,[2]工作表4!$A$4:$F$511,6,0) -> 168125 | L108: 台北營銷處
A109: TW002434001B | B109: 上將電業社 | C109: 19550423 | D109: 92933057 | E109: 台北營銷處 | F109: TPH | G109: 台北 | H109: DEALER_TT | I109: DLC_TT | J109: TW002434001B | K109: =VLOOKUP(A109,[2]工作表4!$A$4:$F$511,6,0) -> 18615 | L109: 台北營銷處
A110: TW002441001B | B110: 上揚電器行 | C110: 19660523 | D110: 02418034 | E110: 台北營銷處 | F110: TPH | G110: 台北 | H110: DEALER_TT | I110: DLC_TT | J110: TW002441001B | K110: =VLOOKUP(A110,[2]工作表4!$A$4:$F$511,6,0) -> 27198 | L110: 台北營銷處
A111: TW002444001B | B111: 台灣電器專賣店 | C111: 19700805 | D111: 98077164 | E111: 台北營銷處 | F111: TPH | G111: 台北 | H111: DEALER_TT | I111: DCS_TT | J111: TW002444001B | K111: =VLOOKUP(A111,[2]工作表4!$A$4:$F$511,6,0) -> 166678 | L111: 台北營銷處
A112: TW002448001B | B112: 宜勇電器 | C112: 19631117 | D112: 66256925 | E112: 台北營銷處 | F112: TPH | G112: 台北 | H112: DEALER_TT | I112: DLC_TT
A113: TW002450001B | B113: 日大電業行 | C113: 19770914 | D113: 40523763 | E113: 台北營銷處 | F113: TPH | G113: 台北 | H113: DEALER_TT | I113: DCS_TT | J113: TW002450001B | K113: =VLOOKUP(A113,[2]工作表4!$A$4:$F$511,6,0) -> 108805 | L113: 台北營銷處
A114: TW002456001B | B114: 燦坤實業股份有限公司 | C114: 69568009 | D114: 69568009 | E114: MMCS-燦坤 | F114: MMCS | G114: MMCS | H114: MMCS_TK3C | I114: CSC_TT | J114: TW002456001B | K114: =VLOOKUP(A114,[2]工作表4!$A$4:$F$511,6,0) -> 443217122 | L114: 燦坤
A115: TW002501001B | B115: 家福股份有限公司總公司 | C115: 22662550 | D115: 22662550 | E115: MMCS-家福 | F115: MMCS | G115: MMCS | H115: MMCS_C4 | I115: MMC_TT | J115: TW002501001B | K115: =VLOOKUP(A115,[2]工作表4!$A$4:$F$511,6,0) -> 223029088 | L115: 家樂福
A116: TW002514001B | B116: 今漢電器有限公司 | C116: 19591213 | D116: 22117460 | E116: 台北營銷處 | F116: TPH | G116: 台北 | H116: DEALER_TT | I116: SPD_TT | J116: TW002514001B | K116: =VLOOKUP(A116,[2]工作表4!$A$4:$F$511,6,0) -> 2940815 | L116: 台北營銷處
A117: TW002516001B | B117: 順寶電器 | C117: 19520904 | D117: 34159393 | E117: 台北營銷處 | F117: TPH | G117: 台北 | H117: DEALER_TT | I117: DLC_TT
A118: TW002525001B | B118: 大潤發流通事業股份有限公司 | C118: 97165560 | D118: 97165560 | E118: MMCS-大潤發 | F118: MMCS | G118: MMCS | H118: MMCS_RT | I118: MMC_TT | J118: TW002525001B | K118: =VLOOKUP(A118,[2]工作表4!$A$4:$F$511,6,0) -> 28644761 | L118: 大潤發
A119: TW002529001B | B119: 遠百企業股份有限公司 | C119: 05714195 | D119: 05714195 | E119: MMCS-愛買 | F119: MMCS | G119: MMCS | H119: MMCS_OTHERS | I119: MMC_TT | J119: TW002529001B | K119: =VLOOKUP(A119,[2]工作表4!$A$4:$F$511,6,0) -> 33590768 | L119: 愛買
A120: TW002535001B | B120: 瑞豪電器行 | C120: 19711205 | D120: 67899377 | E120: 台北營銷處 | F120: TPH | G120: 台北 | H120: DEALER_TT | I120: DLC_TT | J120: TW002535001B | L120: 台北營銷處
A121: TW002542001B | B121: 佳麗寶股份有限公司 | C121: 19470128 | D121: 04897247 | E121: 台北營銷處 | F121: TPH | G121: 台北 | H121: DEALER_TT | I121: DCS_TT
A122: TW002557001B | B122: 全民電子音響專賣店 | C122: TW002557 | D122: 77593945 | E122: 台中營銷處 | F122: DJB | G122: 台中 | H122: DEALER_TT | I122: SPD_TT | J122: TW002557001B | K122: =VLOOKUP(A122,[2]工作表4!$A$4:$F$511,6,0) -> 1982233 | L122: 台中營銷處
A123: TW002572001B | B123: 新傑電器有限公司 | C123: 19540819 | D123: 12749635 | E123: 高屏營銷處 | F123: GWB | G123: 高屏 | H123: DEALER_TT | I123: SPD_TT | J123: TW002572001B | K123: =VLOOKUP(A123,[2]工作表4!$A$4:$F$511,6,0) -> 1442449 | L123: 高屏營銷處
A124: TW002575001B | B124: 東欣電器商行 | C124: 19510527 | D124: 08001827 | E124: 高屏營銷處 | F124: GWB | G124: 高屏 | H124: DEALER_TT | I124: DLC_TT | J124: TW002575001B | K124: =VLOOKUP(A124,[2]工作表4!$A$4:$F$511,6,0) -> 94329 | L124: 高屏營銷處
A125: TW002630001B | B125: 錦穗實業社 | C125: 19571107 | D125: 73713103 | E125: 嘉南營銷處 | F125: DNB | G125: 嘉南 | H125: DEALER_TT | I125: DLC_TT | J125: TW002630001B | K125: =VLOOKUP(A125,[2]工作表4!$A$4:$F$511,6,0) -> 117317 | L125: 嘉南營銷處
A126: TW002652001B | B126: 第二電器音響有限公司 | C126: 19600410 | D126: 33837276 | E126: 台北營銷處 | F126: TPH | G126: 台北 | H126: DEALER_TT | I126: DCS_TT | J126: TW002652001B | K126: =VLOOKUP(A126,[2]工作表4!$A$4:$F$511,6,0) -> 1501609 | L126: 台北營銷處
A127: TW002666001B | B127: 世和電器行 | C127: 19661031 | D127: 87705862 | E127: 桃竹營銷處 | F127: DWB | G127: 桃竹 | H127: DEALER_TT | I127: DLC_TT
A128: TW002666002B | B128: 世和電器行 | C128: 19661031 | D128: 87705862 | E128: ETC | F128: ETC | G128: ETC | H128: ETC | I128: ETC_TT | J128: TW002666002B | K128: 1 | L128: ETC
A129: TW002674001B | B129: 明聳企業有限公司 | C129: XXXXXXXX | D129: XXXXXXXX | E129: SAC | F129: ID&SAC | G129: SAC Sales | H129: B2B_TT | I129: CAC_TT
A130: TW002675001B | B130: 利聲家電有限公司 | C130: 19470925 | D130: 86101317 | E130: 嘉南營銷處 | F130: DNB | G130: 嘉南 | H130: DEALER_TT | I130: DLC_TT | J130: TW002675001B | K130: =VLOOKUP(A130,[2]工作表4!$A$4:$F$511,6,0) -> 101938 | L130: 嘉南營銷處
A131: TW002677001B | B131: 銘山電器 | C131: 23393762 | D131: 23328168 | E131: 台中營銷處 | F131: DJB | G131: 台中 | H131: DEALER_TT | I131: DLC_TT
A132: TW002678001B | B132: 昇泰電業行 | C132: TW002678 | D132: 05830687 | E132: 台中營銷處 | F132: DJB | G132: 台中 | H132: DEALER_TT | I132: DLC_TT
A133: TW002685001B | B133: 威揚電器行 | C133: 19690225 | D133: 17276277 | E133: 台北營銷處 | F133: TPH | G133: 台北 | H133: DEALER_TT | I133: SPD_TT | J133: TW002685001B | K133: =VLOOKUP(A133,[2]工作表4!$A$4:$F$511,6,0) -> 199799 | L133: 台北營銷處
A134: TW002710001B | B134: 建利電子音響 | C134: 19580810 | D134: 18324380 | E134: 台中營銷處 | F134: DJB | G134: 台中 | H134: DEALER_TT | I134: DLC_TT
A135: TW002718001B | B135: 全國電子股份有限公司 | C135: 22006252 | D135: 22006252 | E135: MMCS-全國 | F135: MMCS | G135: MMCS | H135: MMCS_E-LIFE | I135: CSC_TT | J135: TW002718001B | K135: =VLOOKUP(A135,[2]工作表4!$A$4:$F$511,6,0) -> 391043465 | L135: 全國
A136: TW002720001B | B136: 天聲電器商行 | C136: 19540401 | D136: 98249862 | E136: 桃竹營銷處 | F136: DWB | G136: 桃竹 | H136: DEALER_TT | I136: DLC_TT | J136: TW002720001B | K136: =VLOOKUP(A136,[2]工作表4!$A$4:$F$511,6,0) -> 0 | L136: 桃竹營銷處
A137: TW002721001B | B137: 統偉視聽工程有限公司 | C137: 19591014 | D137: 22669408 | E137: 桃竹營銷處 | F137: DWB | G137: 桃竹 | H137: DEALER_TT | I137: DCS_TT | J137: TW002721001B | K137: =VLOOKUP(A137,[2]工作表4!$A$4:$F$511,6,0) -> 21735 | L137: 桃竹營銷處
A138: TW002725001B | B138: 侑興電器有限公司 | C138: TW002725 | D138: 22682057 | E138: 台中營銷處 | F138: DJB | G138: 台中 | H138: DEALER_TT | I138: DLC_TT | J138: TW002725001B | K138: =VLOOKUP(A138,[2]工作表4!$A$4:$F$511,6,0) -> 0 | L138: 台中營銷處
A139: TW002725002B | B139: 侑興電器有限公司 | C139: XXXXXXXX | D139: XXXXXXXX | E139: SAC | F139: ID&SAC | G139: SAC Sales | H139: B2B_TT | I139: CAC_TT | J139: TW002725002B
A140: TW002745001B | B140: 全英電器有限公司 | C140: 19530909 | D140: 30976506 | E140: 台北營銷處 | F140: TPH | G140: 台北 | H140: DEALER_TT | I140: DLC_TT | J140: TW002745001B | K140: =VLOOKUP(A140,[2]工作表4!$A$4:$F$511,6,0) -> 31366 | L140: 台北營銷處
A141: TW002748001B | B141: 創作電子音響專賣店 | C141: TW002748 | D141: 81964433 | E141: 台中營銷處 | F141: DJB | G141: 台中 | H141: DEALER_TT | I141: DCS_TT | J141: TW002748001B | K141: =VLOOKUP(A141,[2]工作表4!$A$4:$F$511,6,0) -> 129458 | L141: 台中營銷處
A142: TW002750001B | B142: 集雅社股份有限公司 | C142: 89266170 | D142: 89266170 | E142: HPC | F142: DEPT | G142: 百貨 | H142: DEALER_DEPT | I142: DEALER_DEPT | J142: TW002750001B | K142: =VLOOKUP(A142,[2]工作表4!$A$4:$F$511,6,0) -> 89905948 | L142: 百貨
A143: TW002755001B | B143: 聯鈦冷凍空調電器行 | C143: 19660924 | D143: 14156334 | E143: 嘉南營銷處 | F143: DNB | G143: 嘉南 | H143: DEALER_TT | I143: DCS_TT | J143: TW002755001B | K143: =VLOOKUP(A143,[2]工作表4!$A$4:$F$511,6,0) -> 159975 | L143: 嘉南營銷處
A144: TW002757001B | B144: 慧聲電器行 | C144: 19601115 | D144: 78215533 | E144: 台北營銷處 | F144: TPH | G144: 台北 | H144: DEALER_TT | I144: DCS_TT | J144: TW002757001B | L144: 台北營銷處
A145: TW002758001B | B145: 秀翔實業有限公司 | C145: 89429694 | D145: 89429694 | E145: HPC | F145: DEPT | G145: 百貨 | H145: DEALER_DEPT | I145: DEALER_DEPT | J145: TW002758001B | K145: =VLOOKUP(A145,[2]工作表4!$A$4:$F$511,6,0) -> 6144842 | L145: 百貨
A146: TW002761001B | B146: 憶豐電器有限公司 | C146: 19670109 | D146: 47109086 | E146: 桃竹營銷處 | F146: DWB | G146: 桃竹 | H146: DEALER_TT | I146: DLC_TT | J146: TW002761001B | K146: =VLOOKUP(A146,[2]工作表4!$A$4:$F$511,6,0) -> 95022 | L146: 桃竹營銷處
A147: TW002762001B | B147: 員毅電器有限公司 | C147: TW002762 | D147: 16929102 | E147: 台中營銷處 | F147: DJB | G147: 台中 | H147: DEALER_TT | I147: DLC_TT | J147: TW002762001B | K147: =VLOOKUP(A147,[2]工作表4!$A$4:$F$511,6,0) -> 71781 | L147: 台中營銷處
A148: TW002764001B | B148: 弘象電器有限公司 | C148: 19670507 | D148: 97316526 | E148: 台北營銷處 | F148: TPH | G148: 台北 | H148: DEALER_TT | I148: DLC_TT | J148: TW002764001B | K148: =VLOOKUP(A148,[2]工作表4!$A$4:$F$511,6,0) -> 48426 | L148: 台北營銷處
A149: TW002769001B | B149: 東農電器行 | C149: 19611101 | D149: 78766509 | E149: 高屏營銷處 | F149: GWB | G149: 高屏 | H149: DEALER_TT | I149: SPD_TT | J149: TW002769001B | K149: =VLOOKUP(A149,[2]工作表4!$A$4:$F$511,6,0) -> 1443041 | L149: 高屏營銷處
A150: TW002769002B | B150: 東農電器行 | C150: XXXXXXXX | D150: XXXXXXXX | E150: SAC | F150: ID&SAC | G150: SAC Sales | H150: B2B_TT | I150: CAC_TT
A151: TW002780001B | B151: 金銓電器行 | C151: TW002780 | D151: 13759385 | E151: 台中營銷處 | F151: DJB | G151: 台中 | H151: DEALER_TT | I151: DLC_TT | J151: TW002780001B | K151: =VLOOKUP(A151,[2]工作表4!$A$4:$F$511,6,0) -> 51995 | L151: 台中營銷處
A152: TW002789001B | B152: 宏昇電器行 | C152: 19671229 | D152: 97842555 | E152: 台中營銷處 | F152: DJB | G152: 台中 | H152: DEALER_TT | I152: SPD_TT | J152: TW002789001B | K152: =VLOOKUP(A152,[2]工作表4!$A$4:$F$511,6,0) -> 1673319 | L152: 台中營銷處
A153: TW002801001B | B153: 銘信視聽電器城 | C153: 19710720 | D153: 92811337 | E153: 台中營銷處 | F153: DJB | G153: 台中 | H153: DEALER_TT | I153: DLC_TT | J153: TW002801001B | K153: =VLOOKUP(A153,[2]工作表4!$A$4:$F$511,6,0) -> 19525 | L153: 台中營銷處
A154: TW002811001B | B154: 棋杰電器行 | C154: 19650706 | D154: 08016878 | E154: 高屏營銷處 | F154: GWB | G154: 高屏 | H154: DEALER_TT | I154: SPD_TT | J154: TW002811001B | K154: =VLOOKUP(A154,[2]工作表4!$A$4:$F$511,6,0) -> 1872041 | L154: 高屏營銷處
A155: TW002843001B | B155: 吉田電器行 | C155: 19620111 | D155: 17683437 | E155: 桃竹營銷處 | F155: DWB | G155: 桃竹 | H155: DEALER_TT | I155: DLC_TT | J155: TW002843001B | K155: =VLOOKUP(A155,[2]工作表4!$A$4:$F$511,6,0) -> 18492 | L155: 桃竹營銷處
A156: TW002851001B | B156: 隆慶電器行 | C156: 47374042 | D156: 47374803 | E156: 台中營銷處 | F156: DJB | G156: 台中 | H156: DEALER_TT | I156: SPD_TT | J156: TW002851001B | K156: =VLOOKUP(A156,[2]工作表4!$A$4:$F$511,6,0) -> 3082889 | L156: 台中營銷處
A157: TW002856001B | B157: 老雙億實業有限公司 | C157: 19490915 | D157: 35957606 | E157: 台北營銷處 | F157: TPH | G157: 台北 | H157: DEALER_TT | I157: DCS_TT | J157: TW002856001B | K157: =VLOOKUP(A157,[2]工作表4!$A$4:$F$511,6,0) -> 83618 | L157: 台北營銷處
A158: TW002858001B | B158: 豐昌電器行 | C158: 19630721 | D158: 06565736 | E158: 嘉南營銷處 | F158: DNB | G158: 嘉南 | H158: DEALER_TT | I158: DLC_TT | J158: TW002858001B | K158: =VLOOKUP(A158,[2]工作表4!$A$4:$F$511,6,0) -> 92357 | L158: 嘉南營銷處
A159: TW002861001B | B159: 昇廣電器有限公司 | C159: 19611020 | D159: 16498693 | E159: 台中營銷處 | F159: DJB | G159: 台中 | H159: DEALER_TT | I159: DLC_TT | J159: TW002861001B | K159: =VLOOKUP(A159,[2]工作表4!$A$4:$F$511,6,0) -> 60752 | L159: 台中營銷處
A160: TW002870001B | B160: 松立電業社 | C160: 19560806 | D160: 90720487 | E160: 高屏營銷處 | F160: GWB | G160: 高屏 | H160: DEALER_TT | I160: DLC_TT | J160: TW002870001B | K160: =VLOOKUP(A160,[2]工作表4!$A$4:$F$511,6,0) -> 58193 | L160: 高屏營銷處
A161: TW002886001B | B161: 三信電氣行 | C161: 19570402 | D161: 08359830 | E161: 台中營銷處 | F161: DJB | G161: 台中 | H161: DEALER_TT | I161: SPD_TT | J161: TW002886001B | K161: =VLOOKUP(A161,[2]工作表4!$A$4:$F$511,6,0) -> 906680 | L161: 台中營銷處
A162: TW002887001B | B162: 仙風電器有限公司 | C162: XXXXXXXX | D162: XXXXXXXX | E162: 桃竹營銷處 | F162: DWB | G162: 桃竹 | H162: DEALER_TT | I162: DCS_TT | J162: TW002887001B | K162: =VLOOKUP(A162,[2]工作表4!$A$4:$F$511,6,0) -> 551691 | L162: 桃竹營銷處
A163: TW002896001B | B163: 三星電器行 | C163: 19670620 | D163: 59096683 | E163: 台中營銷處 | F163: DJB | G163: 台中 | H163: DEALER_TT | I163: DCS_TT | J163: TW002896001B | K163: =VLOOKUP(A163,[2]工作表4!$A$4:$F$511,6,0) -> 520542 | L163: 台中營銷處
A164: TW002897001B | B164: 南山電器行 | C164: 19700420 | D164: 17925152 | E164: 台北營銷處 | F164: TPH | G164: 台北 | H164: DEALER_TT | I164: DLC_TT | K164: =VLOOKUP(A164,[2]工作表4!$A$4:$F$511,6,0) -> 0
A165: TW002904001B | B165: 天烽電器有限公司 | C165: 19711108 | D165: 80272502 | E165: 台北營銷處 | F165: TPH | G165: 台北 | H165: DEALER_TT | I165: DLC_TT | J165: TW002904001B | K165: =VLOOKUP(A165,[2]工作表4!$A$4:$F$511,6,0) -> 13719 | L165: 台北營銷處
A166: TW002919001B | B166: 建鑫電器行 | C166: 19721112 | D166: 18282184 | E166: 嘉南營銷處 | F166: DNB | G166: 嘉南 | H166: DEALER_TT | I166: DCS_TT | J166: TW002919001B | K166: =VLOOKUP(A166,[2]工作表4!$A$4:$F$511,6,0) -> 144097 | L166: 嘉南營銷處
A167: TW002927001B | B167: 中信冷凍電器行 | C167: 19710227 | D167: 19801699 | E167: 高屏營銷處 | F167: GWB | G167: 高屏 | H167: DEALER_TT | I167: DCS_TT | J167: TW002927001B | K167: =VLOOKUP(A167,[2]工作表4!$A$4:$F$511,6,0) -> 548715 | L167: 高屏營銷處
A168: TW002945001B | B168: 勁鋒電器行 | C168: 19641113 | D168: 87753771 | E168: 高屏營銷處 | F168: GWB | G168: 高屏 | H168: DEALER_TT | I168: DLC_TT | J168: TW002945001B | K168: =VLOOKUP(A168,[2]工作表4!$A$4:$F$511,6,0) -> 0 | L168: 高屏營銷處
A169: TW002946001B | B169: 佑均電器商行 | C169: 19800403 | D169: 98119827 | E169: 桃竹營銷處 | F169: DWB | G169: 桃竹 | H169: DEALER_TT | I169: DLC_TT | J169: TW002946001B
A170: TW002950001B | B170: 廣昌電器行 | C170: TW002950 | D170: 97885688 | E170: 台中營銷處 | F170: DJB | G170: 台中 | H170: DEALER_TT | I170: SPD_TT | J170: TW002950001B | K170: =VLOOKUP(A170,[2]工作表4!$A$4:$F$511,6,0) -> 2182551 | L170: 台中營銷處
A171: TW002952001B | B171: 廣駿電器行 | C171: 24925933 | D171: 24921827 | E171: 台中營銷處 | F171: DJB | G171: 台中 | H171: DEALER_TT | I171: DLC_TT | J171: TW002952001B | K171: =VLOOKUP(A171,[2]工作表4!$A$4:$F$511,6,0) -> 109974 | L171: 台中營銷處
A172: TW002960001B | B172: 正賢電器行 | C172: TW002960 | D172: 84042476 | E172: 台中營銷處 | F172: DJB | G172: 台中 | H172: DEALER_TT | I172: DLC_TT | J172: TW002960001B | K172: =VLOOKUP(A172,[2]工作表4!$A$4:$F$511,6,0) -> 125477 | L172: 台中營銷處
A173: TW002964001B | B173: 台灣樂金顯示科技股份有限公司 | C173: XXXXXXXX | D173: XXXXXXXX | E173: B2B2C | F173: B2B2C | G173: B2B2C | H173: B2B_TT | I173: B2B_TT
A174: TW002965001B | B174: 永定電器有限公司 | C174: 19781001 | D174: 96857734 | E174: 高屏營銷處 | F174: GWB | G174: 高屏 | H174: DEALER_TT | I174: DLC_TT | J174: TW002965001B | K174: =VLOOKUP(A174,[2]工作表4!$A$4:$F$511,6,0) -> 124558 | L174: 高屏營銷處
A175: TW002975001B | B175: 佳美電器行 | C175: 19550202 | D175: 06644845 | E175: 嘉南營銷處 | F175: DNB | G175: 嘉南 | H175: DEALER_TT | I175: DLC_TT
A176: TW002978001B | B176: 匯豐家電有限公司 | C176: 23383896 | D176: 23366784 | E176: 台中營銷處 | F176: DJB | G176: 台中 | H176: DEALER_TT | I176: DLC_TT | J176: TW002978001B | K176: =VLOOKUP(A176,[2]工作表4!$A$4:$F$511,6,0) -> 0 | L176: 台中營銷處
A177: TW002989001B | B177: 隆松電器有限公司 | C177: 36663666 | D177: 69845546 | E177: 嘉南營銷處 | F177: DNB | G177: 嘉南 | H177: DEALER_TT | I177: DLC_TT | J177: TW002989001B | K177: =VLOOKUP(A177,[2]工作表4!$A$4:$F$511,6,0) -> 0 | L177: 嘉南營銷處
A178: TW002990001B | B178: 國際水電冷氣工程行 | C178: 19651008 | D178: 49776492 | E178: 桃竹營銷處 | F178: DWB | G178: 桃竹 | H178: DEALER_TT | I178: DCS_TT | K178: =VLOOKUP(A178,[2]工作表4!$A$4:$F$511,6,0) -> 708991 | L178: 桃竹營銷處
A179: TW002991001B | B179: 偉誠電器 | C179: 19740120 | D179: 96888413 | E179: 台北營銷處 | F179: TPH | G179: 台北 | H179: DEALER_TT | I179: DLC_TT
A180: TW002997001B | B180: 鎰銘電器有限公司 | C180: 19670216 | D180: 80103181 | E180: 台北營銷處 | F180: TPH | G180: 台北 | H180: DEALER_TT | I180: SPD_TT | J180: TW002997001B | K180: =VLOOKUP(A180,[2]工作表4!$A$4:$F$511,6,0) -> 4264259 | L180: 台北營銷處
A181: TW003001001B | B181: 銘盛電器有限公司 | C181: 19560401 | D181: 97184980 | E181: 台北營銷處 | F181: TPH | G181: 台北 | H181: DEALER_TT | I181: DLC_TT | J181: TW003001001B | L181: 台北營銷處
A182: TW003013001B | B182: 重慶國際有限公司 | C182: TW003013 | D182: 79955373 | E182: 台中營銷處 | F182: DJB | G182: 台中 | H182: DEALER_TT | I182: DCS_TT | J182: TW003013001B | K182: =VLOOKUP(A182,[2]工作表4!$A$4:$F$511,6,0) -> 395261 | L182: 台中營銷處
A183: TW003020002B | B183: 華笙音響企業有限公司 | C183: TW003020 | D183: 23688754 | E183: 台中營銷處 | F183: DJB | G183: 台中 | H183: DEALER_TT | I183: DLC_TT | J183: TW003020002B | K183: =VLOOKUP(A183,[2]工作表4!$A$4:$F$511,6,0) -> 51071 | L183: 台中營銷處
A184: TW003023001B | B184: 翠亨企業股份有限公司 | C184: 19820909 | D184: 16129431 | E184: 高屏營銷處 | F184: GWB | G184: 高屏 | H184: DEALER_TT | I184: DCS_TT | J184: TW003023001B | K184: =VLOOKUP(A184,[2]工作表4!$A$4:$F$511,6,0) -> 1459569 | L184: 高屏營銷處
A185: TW003029001B | B185: 大統電器行 | C185: 19581106 | D185: 02846102 | E185: 桃竹營銷處 | F185: DWB | G185: 桃竹 | H185: DEALER_TT | I185: DLC_TT | J185: TW003029001B | K185: =VLOOKUP(A185,[2]工作表4!$A$4:$F$511,6,0) -> 271401 | L185: 桃竹營銷處
A186: TW003034001B | B186: 九瑜電氣行 | C186: TW003034 | D186: 97887216 | E186: 台中營銷處 | F186: DJB | G186: 台中 | H186: DEALER_TT | I186: DLC_TT | J186: TW003034001B | L186: 台中營銷處
A187: TW003035001B | B187: 友信電器有限公司 | C187: 19571230 | D187: 97341659 | E187: 嘉南營銷處 | F187: DNB | G187: 嘉南 | H187: DEALER_TT | I187: DLC_TT | J187: TW003035001B | K187: =VLOOKUP(A187,[2]工作表4!$A$4:$F$511,6,0) -> 0 | L187: 嘉南營銷處
A188: TW003040001B | B188: 悅鼎電器有限公司 | C188: 19690102 | D188: 84693028 | E188: 台北營銷處 | F188: TPH | G188: 台北 | H188: DEALER_TT | I188: SPD_TT | J188: TW003040001B | K188: =VLOOKUP(A188,[2]工作表4!$A$4:$F$511,6,0) -> 7324853 | L188: 台北營銷處
A189: TW003052001B | B189: 蓁筳園企業有限公司 | C189: XXXXXXXX | D189: XXXXXXXX | E189: B2B2C | F189: B2B2C | G189: B2B2C | H189: B2B_TT | I189: B2B_TT
A190: TW003052002B | B190: 蓁筳園企業有限公司 | C190: XXXXXXXX | D190: XXXXXXXX | E190: SAC | F190: ID&SAC | G190: SAC Sales | H190: B2B_TT | I190: CAC_TT
A191: TW003053001B | B191: 尚德師企業有限公司 | C191: 19630211 | D191: 12933843 | E191: 台北營銷處 | F191: TPH | G191: 台北 | H191: DEALER_TT | I191: DLC_TT | J191: TW003053001B | K191: =VLOOKUP(A191,[2]工作表4!$A$4:$F$511,6,0) -> 27198 | L191: 台北營銷處
A192: TW003054001B | B192: 上益 | C192: 19550615 | D192: 15719466 | E192: 嘉南營銷處 | F192: DNB | G192: 嘉南 | H192: DEALER_TT | I192: DLC_TT
A193: TW003071001B | B193: 泰昀企業有限公司 | C193: 19490915 | D193: 22866800 | E193: 台北營銷處 | F193: TPH | G193: 台北 | H193: DEALER_TT | I193: DCS_TT | J193: TW003071001B | K193: =VLOOKUP(A193,[2]工作表4!$A$4:$F$511,6,0) -> 1294499 | L193: 台北營銷處
A194: TW003094001B | B194: 大銀幕視聽音響有限公司 | C194: TW003094 | D194: 97033415 | E194: 台中營銷處 | F194: DJB | G194: 台中 | H194: DEALER_TT | I194: DCS_TT | J194: TW003094001B | K194: =VLOOKUP(A194,[2]工作表4!$A$4:$F$511,6,0) -> 0 | L194: 台中營銷處
A195: TW003096001B | B195: 極品家電 | C195: 47226905 | D195: 47293663 | E195: 台中營銷處 | F195: DJB | G195: 台中 | H195: DEALER_TT | I195: DCS_TT
A196: TW003125001B | B196: 宏暉電器行 | C196: 19730421 | D196: 14194891 | E196: 高屏營銷處 | F196: GWB | G196: 高屏 | H196: DEALER_TT | I196: DLC_TT | J196: TW003125001B | K196: =VLOOKUP(A196,[2]工作表4!$A$4:$F$511,6,0) -> 0 | L196: 高屏營銷處
A197: TW003126001B | B197: 東圓電器行 | C197: 19811028 | D197: 19656246 | E197: 桃竹營銷處 | F197: DWB | G197: 桃竹 | H197: DEALER_TT | I197: SPD_TT | J197: TW003126001B | K197: =VLOOKUP(A197,[2]工作表4!$A$4:$F$511,6,0) -> 0 | L197: 桃竹營銷處
A198: TW003127001B | B198: 富盟企業社 | C198: TW003127 | D198: 13400211 | E198: 台中營銷處 | F198: DJB | G198: 台中 | H198: DEALER_TT | I198: DCS_TT | J198: TW003127001B | K198: =VLOOKUP(A198,[2]工作表4!$A$4:$F$511,6,0) -> 1303348 | L198: 台中營銷處
A199: TW003130001B | B199: 展碁國際股份有限公司 | C199: 20773257 | D199: 20773257 | E199: IT | F199: IT | G199: IT | H199: IT_TT | I199: IT_TT | J199: TW003130001B | K199: =VLOOKUP(A199,[2]工作表4!$A$4:$F$511,6,0) -> 70176187 | L199: IT
A200: TW003130002B | B200: 展碁國際股份有限公司 | C200: 20773257 | D200: 20773257 | E200: ID | F200: ID&SAC | G200: ID Sales | H200: B2B_TT | J200: TW003130002B | K200: =VLOOKUP(A200,[2]工作表4!$A$4:$F$511,6,0) -> 1689975 | L200: ID Sales Team
... 740 more rows

Sheet 預算表
A1: 注意事項：1)以下獎勵辦法內容,請客戶確認後回覆LG公司,如不回覆則,則視為客戶同意並接受本次所有獎勵活動內容,且無異議。 2)所有促銷活動獎勵辦法,依LG公司公告內容執行 ,需達成目標或協議後,並依實際執行結果計算,方可取得下列協議獎勵 3)LG公司同意之促銷活動皆須有[Promotion No.] ,若無即為個人行為,LG公司概不予承認。
A3: 2022年04月 | B3: 台 灣 樂 金 電 器 股 份 有 限 公 司
A4: =確認code正確 ->  | B4: =店CODE -> 0 | D4: 密 碼
A5: 店Code： | C5: 第一組： | E5: =確認1 -> 0
A6: 店 名： | B6: =確認店 ->  | C6: 第二組： | E6: =確認2 -> 0
A7: =確認區 ->  | B7: =確認BG ->  | C7: =確認BG1 ->  | D7: =R好CODE1 ->  | E7: =R好CODE2 ->  | J7: =R好CODE3 -> 
A8: 店代號 | B8: Promotion No | C8: Promotion Name | D8: 起始日 | E8: 到期日 | F8: 獎勵內容 | G8: 型號 | H8: AMT/% | I8: 單價/%

Sheet BALANCE (hidden)
A1: Bill To Customer Code | B1: Bill To Customer Code | C1: Promotion No | D1: Promotion Name | E1: Start Date | F1: End Date | G1: Property Type | H1: Start Date | I1: End Date | J1: 內容 | K1: 店代號 | L1: 店名 | M1: NO | N1: AA(必填) | O1: AMT/% | P1: Description | Q1: Division | R1: Model | S1: Unit / % | T1: QTY / Sales | U1: Expected Cost
A2: =IFERROR(VLOOKUP(N2,多CODE,2,0),IF(RIGHT($B2,1)="H",LEFT($B2,11)&"B",IFERROR(VLOOKUP($B2,SHIP,3,0),$B2))) -> TW002769001B | B2: TW002769001B | C2: TT-TTSI-20211014-0003 | D2: ASPM2021092802-AC-Dealer-Travel Support-20211018-20220930 | E2: 2021-10-18 | F2: 2022-09-30 | G2: =MID(C2,4,4) -> TTSI | H2: =IF(OR($G2="NTSI",$G2="TTSI"),$E2,LEFT($E2,4)&"/"&MID($E2,5,2)&"/"&RIGHT($E2,2)) -> 2021-10-18 | I2: =IF(OR($G2="NTSI",$G2="TTSI"),$F2,LEFT($F2,4)&"/"&MID($F2,5,2)&"/"&RIGHT($F2,2)) -> 2022-09-30 | J2: 協議-冷氣-旅遊補助(達成900萬後，每達成180萬業績給予2.2%旅遊補助金)-20211018~20220930 | K2: TW002769001B | L2: 東農電器 | M2: TW | N2: 高屏營銷處 | O2: % | P2: 旅遊補助(達成900萬後，每達成180萬業績給予2.2%旅遊補助金) | R2: 冷氣 | T2: 0
A3: TW004758001B | B3: TW004758001B | C3: TT-TTSI-20211014-0003 | D3: ASPM2021092802-AC-Dealer-Travel Support-20211018-20220930 | E3: 2021-10-18 | F3: 2022-09-30 | G3: TTSI | H3: 2021-10-18 | I3: 2022-09-30 | J3: 協議-冷氣-旅遊補助(達成900萬後，每達成180萬業績給予2.2%旅遊補助金)-20211018~20220930 | K3: TW004758001B | L3: 同勝電器 | M3: TW | N3: 高屏營銷處 | O3: % | P3: 旅遊補助(達成900萬後，每達成180萬業績給予2.2%旅遊補助金) | R3: 冷氣 | T3: 0
A4: TW005662001B | B4: TW005662001B | C4: TT-TTSI-20211014-0003 | D4: ASPM2021092802-AC-Dealer-Travel Support-20211018-20220930 | E4: 2021-10-18 | F4: 2022-09-30 | G4: TTSI | H4: 2021-10-18 | I4: 2022-09-30 | J4: 協議-冷氣-旅遊補助(達成900萬後，每達成180萬業績給予2.2%旅遊補助金)-20211018~20220930 | K4: TW005662001B | L4: 統勝電器有限公司 | M4: TW | N4: D | O4: % | P4: 旅遊補助(達成900萬後，每達成180萬業績給予2.2%旅遊補助金) | R4: 冷氣 | T4: 0
A5: TW006379001B | B5: TW006379001B | C5: TT-TTSI-20211014-0003 | D5: ASPM2021092802-AC-Dealer-Travel Support-20211018-20220930 | E5: 2021-10-18 | F5: 2022-09-30 | G5: TTSI | H5: 2021-10-18 | I5: 2022-09-30 | J5: 協議-冷氣-旅遊補助(達成900萬後，每達成180萬業績給予2.2%旅遊補助金)-20211018~20220930 | K5: TW006379001B | L5: 東洋電器行 | M5: TW | N5: 台中營銷處 | O5: % | P5: 旅遊補助(達成900萬後，每達成180萬業績給予2.2%旅遊補助金) | R5: 冷氣 | T5: 0
A6: TW006823001B | B6: TW006823001B | C6: TT-TTSI-20211014-0003 | D6: ASPM2021092802-AC-Dealer-Travel Support-20211018-20220930 | E6: 2021-10-18 | F6: 2022-09-30 | G6: TTSI | H6: 2021-10-18 | I6: 2022-09-30 | J6: 協議-冷氣-旅遊補助(達成900萬後，每達成180萬業績給予2.2%旅遊補助金)-20211018~20220930 | K6: TW006823001B | L6: 米米實業有限公司 | M6: TW | N6: 台中營銷處 | O6: % | P6: 旅遊補助(達成900萬後，每達成180萬業績給予2.2%旅遊補助金) | R6: 冷氣 | T6: 0
A7: TW007112001B | B7: TW007112001B | C7: TT-TTSI-20211014-0003 | D7: ASPM2021092802-AC-Dealer-Travel Support-20211018-20220930 | E7: 2021-10-18 | F7: 2022-09-30 | G7: TTSI | H7: 2021-10-18 | I7: 2022-09-30 | J7: 協議-冷氣-旅遊補助(達成900萬後，每達成180萬業績給予2.2%旅遊補助金)-20211018~20220930 | K7: TW007112001B | L7: 桂安家電空調 | M7: TW | N7: 台中營銷處 | O7: % | P7: 旅遊補助(達成900萬後，每達成180萬業績給予2.2%旅遊補助金) | R7: 冷氣 | T7: 0
A8: TW002381001B | B8: TW002381001B | C8: TT-TTSI-20211014-0003 | D8: ASPM2021092802-AC-Dealer-Travel Support-20211018-20220930 | E8: 2021-10-18 | F8: 2022-09-30 | G8: TTSI | H8: 2021-10-18 | I8: 2022-09-30 | J8: 協議-冷氣-旅遊補助(達成900萬後，每達成180萬業績給予2.2%旅遊補助金)-20211018~20220930 | K8: TW002381001B | L8: 萬豐視聽 | M8: TW | N8: 台北營銷處 | O8: % | P8: 旅遊補助(達成900萬後，每達成180萬業績給予2.2%旅遊補助金) | R8: 冷氣 | T8: 0
A9: TW002143001B | B9: TW002143001B | C9: TT-TTSI-20211014-0003 | D9: ASPM2021092802-AC-Dealer-Travel Support-20211018-20220930 | E9: 2021-10-18 | F9: 2022-09-30 | G9: TTSI | H9: 2021-10-18 | I9: 2022-09-30 | J9: 協議-冷氣-旅遊補助(達成900萬後，每達成180萬業績給予2.2%旅遊補助金)-20211018~20220930 | K9: TW002143001B | L9: 全省電器 | M9: TW | N9: 嘉南營銷處 | O9: % | P9: 旅遊補助(達成900萬後，每達成180萬業績給予2.2%旅遊補助金) | R9: 冷氣 | T9: 0
A10: TW006897001B | B10: TW006897001B | C10: TT-TTSI-20211014-0003 | D10: ASPM2021092802-AC-Dealer-Travel Support-20211018-20220930 | E10: 2021-10-18 | F10: 2022-09-30 | G10: TTSI | H10: 2021-10-18 | I10: 2022-09-30 | J10: 協議-冷氣-旅遊補助(達成900萬後，每達成180萬業績給予2.2%旅遊補助金)-20211018~20220930 | K10: TW006897001B | L10: 姿芳科技有限公司 | M10: TW | N10: 桃竹營銷處 | O10: % | P10: 旅遊補助(達成900萬後，每達成180萬業績給予2.2%旅遊補助金) | R10: 冷氣 | T10: 0
A11: TW007003001B | B11: TW007003001B | C11: TT-TTSI-20211014-0003 | D11: ASPM2021092802-AC-Dealer-Travel Support-20211018-20220930 | E11: 2021-10-18 | F11: 2022-09-30 | G11: TTSI | H11: 2021-10-18 | I11: 2022-09-30 | J11: 協議-冷氣-旅遊補助(達成900萬後，每達成180萬業績給予2.2%旅遊補助金)-20211018~20220930 | K11: TW007003001B | L11: 東家電器行 | M11: TW | N11: 台中營銷處 | O11: % | P11: 旅遊補助(達成900萬後，每達成180萬業績給予2.2%旅遊補助金) | R11: 冷氣 | T11: 0
A12: TW007067001B | B12: TW007067001B | C12: TT-TTSI-20211217-0110 | D12: IT21127067I01-ALL-TW007067-SuperTarget-2022 | E12: 2022-01-01 | F12: 2022-12-31 | G12: TTSI | H12: 2022-01-01 | I12: 2022-12-31 | J12: 合約-全產品-超達成獎0.3%-01~12 | K12: TW007067001B | L12: 燦坤實業 | M12: TW | N12: IT | O12: % | P12: 超達成獎0.3% | R12: 全產品 | T12: 0
A13: TW002718001B | B13: TW002718001B | C13: TT-TTSI-20211217-0145 | D13: Contract-All-TW002718-Elife-YearTargetRebate-2022 | E13: 2022-01-01 | F13: 2022-12-31 | G13: TTSI | H13: 2022-01-01 | I13: 2022-12-31 | J13: 合約-全產品-年扣(14億以上4.1%)-01~12 | K13: TW002718001B | L13: 全國電子 | M13: TW | N13: MMCS-全國 | O13: % | P13: 年扣(14億以上4.1%) | R13: 全產品 | T13: 0
A14: TW005578001B | B14: TW005578001B | C14: TT-TTSI-20211222-0020 | D14: Contract-ALL-TW005578-YEAR-2022 | E14: 2022-01-01 | F14: 2022-12-31 | G14: TTSI | H14: 2022-01-01 | I14: 2022-12-31 | J14: 合約-全產品-年扣-01~12 | K14: TW005578001B | L14: 大同綜合訊電股份有限公司 | M14: TW | N14: MMCS-大同 | O14: % | P14: 年扣(1億2,000萬*0.8%，1億6,000萬*1%，2億*1.2%) | R14: 全產品 | T14: 0
A15: TW002525001B | B15: TW002525001H | C15: TT-TTSI-20211227-0188 | D15: Contract MMCSN2112J031-Black-TW002525-Year-2022 | E15: 2022-01-01 | F15: 2022-12-31 | G15: TTSI | H15: 2022-01-01 | I15: 2022-12-31 | J15: 合約-黑電-年扣(180M*0.4%,215M*0.6%,255M*0.8%,295M*1%)-01~12 | K15: TW002525001H | L15: 大潤發總公司 | M15: TW | N15: MMCS-大潤發 | O15: % | P15: 年扣(180M*0.4%,215M*0.6%,255M*0.8%,295M*1%) | R15: 電視 | T15: 0
A16: TW002525001B | B16: TW002525001H | C16: TT-TTSI-20211227-0189 | D16: Contract MMCSN2112J031-White-TW002525-Year-2022 | E16: 2022-01-01 | F16: 2022-12-31 | G16: TTSI | H16: 2022-01-01 | I16: 2022-12-31 | J16: 合約-白電-年扣(300M*1.55%,342M*1.75%,376M*1.95%,510M以上*2.15%)-01~12 | K16: TW002525001H | L16: 大潤發總公司 | M16: TW | N16: MMCS-大潤發 | O16: % | P16: 年扣(300M*1.55%,342M*1.75%,376M*1.95%,510M以上*2.15%) | R16: 冰箱 | T16: 0
A17: TW002525001B | B17: TW002525001H | C17: TT-TTSI-20211227-0189 | D17: Contract MMCSN2112J031-White-TW002525-Year-2022 | E17: 2022-01-01 | F17: 2022-12-31 | G17: TTSI | H17: 2022-01-01 | I17: 2022-12-31 | J17: 合約-白電-年扣(300M*1.55%,342M*1.75%,376M*1.95%,510M以上*2.15%)-01~12 | K17: TW002525001H | L17: 大潤發總公司 | M17: TW | N17: MMCS-大潤發 | O17: % | P17: 年扣(300M*1.55%,342M*1.75%,376M*1.95%,510M以上*2.15%) | R17: 洗衣機 | T17: 0
A18: TW002525001B | B18: TW002525001H | C18: TT-TTSI-20211227-0189 | D18: Contract MMCSN2112J031-White-TW002525-Year-2022 | E18: 2022-01-01 | F18: 2022-12-31 | G18: TTSI | H18: 2022-01-01 | I18: 2022-12-31 | J18: 合約-白電-年扣(300M*1.55%,342M*1.75%,376M*1.95%,510M以上*2.15%)-01~12 | K18: TW002525001H | L18: 大潤發總公司 | M18: TW | N18: MMCS-大潤發 | O18: % | P18: 年扣(300M*1.55%,342M*1.75%,376M*1.95%,510M以上*2.15%) | R18: 冷氣 | T18: 0
A19: TW002525001B | B19: TW002525001H | C19: TT-TTSI-20211227-0189 | D19: Contract MMCSN2112J031-White-TW002525-Year-2022 | E19: 2022-01-01 | F19: 2022-12-31 | G19: TTSI | H19: 2022-01-01 | I19: 2022-12-31 | J19: 合約-白電-年扣(300M*1.55%,342M*1.75%,376M*1.95%,510M以上*2.15%)-01~12 | K19: TW002525001H | L19: 大潤發總公司 | M19: TW | N19: MMCS-大潤發 | O19: % | P19: 年扣(300M*1.55%,342M*1.75%,376M*1.95%,510M以上*2.15%) | R19: 除濕/清淨機 | T19: 0
A20: TW002525001B | B20: TW002525001H | C20: TT-TTSI-20211227-0189 | D20: Contract MMCSN2112J031-White-TW002525-Year-2022 | E20: 2022-01-01 | F20: 2022-12-31 | G20: TTSI | H20: 2022-01-01 | I20: 2022-12-31 | J20: 合約-白電-年扣(300M*1.55%,342M*1.75%,376M*1.95%,510M以上*2.15%)-01~12 | K20: TW002525001H | L20: 大潤發總公司 | M20: TW | N20: MMCS-大潤發 | O20: % | P20: 年扣(300M*1.55%,342M*1.75%,376M*1.95%,510M以上*2.15%) | R20: 微波爐 | T20: 0
A21: TW002525001B | B21: TW002525001H | C21: TT-TTSI-20211227-0189 | D21: Contract MMCSN2112J031-White-TW002525-Year-2022 | E21: 2022-01-01 | F21: 2022-12-31 | G21: TTSI | H21: 2022-01-01 | I21: 2022-12-31 | J21: 合約-白電-年扣(300M*1.55%,342M*1.75%,376M*1.95%,510M以上*2.15%)-01~12 | K21: TW002525001H | L21: 大潤發總公司 | M21: TW | N21: MMCS-大潤發 | O21: % | P21: 年扣(300M*1.55%,342M*1.75%,376M*1.95%,510M以上*2.15%) | R21: 洗碗機 | T21: 0
A22: TW002525001B | B22: TW002525001H | C22: TT-TTSI-20211227-0190 | D22: Contract MMCSN2112J031-VCC-TW002525-Year-2022 | E22: 2022-01-01 | F22: 2022-12-31 | G22: TTSI | H22: 2022-01-01 | I22: 2022-12-31 | J22: 合約-小家電(吸塵器)-年扣(10M*1.5%,15M*1.7%,20M*1.9%,25M以上*2%)-01~12 | K22: TW002525001H | L22: 大潤發總公司 | M22: TW | N22: MMCS-大潤發 | O22: % | P22: 年扣(10M*1.5%,15M*1.7%,20M*1.9%,25M以上*2%) | R22: 吸塵器 | T22: 0
A23: TW002525001B | B23: TW002525001H | C23: TT-TTSI-20211227-0203 | D23: Contract MMCSN2112J031-ALL-TW002525-AccessoryContractNewOpenAchieveTargetSupport-2022 | E23: 2022-01-01 | F23: 2022-12-31 | G23: TTSI | H23: 2022-01-01 | I23: 2022-12-31 | J23: 合約-全產品-附約全店改裝目標達成補助(0.1%*預計開4家)-01~12 | K23: TW002525001H | L23: 大潤發總公司 | M23: TW | N23: MMCS-大潤發 | O23: % | P23: 附約全店改裝目標達成補助(0.1%*預計開4家) | R23: 全產品 | T23: 0
A24: TW007124001B | B24: TW007124001B | C24: TT-TTSI-20211228-0028 | D24: Contract MMCSN2112T011-All-TW007124-YEAR-2022 | E24: 2022-01-01 | F24: 2022-12-31 | G24: TTSI | H24: 2022-01-01 | I24: 2022-12-31 | J24: 合約-全產品-年扣(10M*0.5%,40M*1%,100M以上*1.5%)(賣場管理贊助費)-01~12 | K24: TW007124001B | L24: 特力屋 | M24: TW | N24: MMCS-特力屋 | O24: % | P24: 年扣(10M*0.5%,40M*1%,100M以上*1.5%)(賣場管理贊助費) | R24: 全產品 | T24: 0
A25: TW007124001B | B25: TW007124001B | C25: TT-TTSI-20211228-0029 | D25: Contract MMCSN2112T01-AC-TW007124-Sales Target-2022 | E25: 2022-01-01 | F25: 2022-12-31 | G25: TTSI | H25: 2022-01-01 | I25: 2022-12-31 | J25: 合約-冷氣-進貨達成獎勵(目標300台1%/500台以上1.5%)-01~12 | K25: TW007124001B | L25: 特力屋 | M25: TW | N25: MMCS-特力屋 | O25: % | P25: 進貨達成獎勵(目標300台1%/500台以上1.5%) | R25: 冷氣 | T25: 0
A26: TW002529001B | B26: TW002529001B | C26: TT-TTSI-20211228-0033 | D26: Contract-All-TW002529-YEAR-2022 | E26: 2022-01-01 | F26: 2022-12-31 | G26: TTSI | H26: 2022-01-01 | I26: 2022-12-31 | J26: 合約-全產品-年扣-01~12 | K26: TW002529001B | L26: 愛買吉安總公司 | M26: TW | N26: MMCS-愛買 | O26: % | P26: 年扣(8,000萬*1.2%，1億1,000萬*1.5%，1億5,000萬*1.8%) | R26: 全產品 | T26: 0
A27: TW002529001B | B27: TW002529001B | C27: TT-TTSI-20211228-0052 | D27: Contract-AC-TW002529-Sellin Target Rebate-2022 | E27: 2022-01-01 | F27: 2022-12-31 | G27: TTSI | H27: 2022-01-01 | I27: 2022-12-31 | J27: 協議-冷氣-年度目標達成進貨獎勵3%(目標300台)-01~12 | K27: TW002529001B | L27: 愛買吉安總公司 | M27: TW | N27: MMCS-愛買 | O27: % | P27: 年度目標達成進貨獎勵3%(目標300台) | R27: 冷氣 | T27: 0
A28: TW002758001B | B28: TW002758001B | C28: TT-TTSI-20211229-0001 | D28: DEPT2112D006-ALL-TW002758-SIAYearAchieveTargetSIARebate-2022 | E28: 2022-01-01 | F28: 2022-12-31 | G28: TTSI | H28: 2022-01-01 | I28: 2022-12-31 | J28: 協議-全產品-年度達成獎勵(70,000K:1.5%,80,000K:2%)-01~12 | K28: TW002758001B | L28: 秀翔 | M28: TW | N28: 百貨 | O28: % | P28: 年度達成獎勵(70,000K:1.5%,80,000K:2%) | R28: 全產品 | T28: 0
A29: TW002750001B | B29: TW002750001B | C29: TT-TTSI-20211229-0002 | D29: DEPT2112D006-ALL-TW002750-SIAYearAchieveTargetSIARebate-2022 | E29: 2022-01-01 | F29: 2022-12-31 | G29: TTSI | H29: 2022-01-01 | I29: 2022-12-31 | J29: 協議-全產品-年度達成獎勵(950,000K:5%,1,150,000K:6%)-01~12 | K29: TW002750001B | L29: 集雅社 | M29: TW | N29: 百貨 | O29: % | P29: 年度達成獎勵(950,000K:5%,1,150,000K:6%) | R29: 全產品 | T29: 0
A30: TW005281001B | B30: TW005281001B | C30: TT-TTSI-20211229-0003 | D30: DEPT2112D006-ALL-TW005281-SIAYearAchieveTargetSIARebate-2022 | E30: 2022-01-01 | F30: 2022-12-31 | G30: TTSI | H30: 2022-01-01 | I30: 2022-12-31 | J30: 協議-全產品-年度達成獎勵(60,000K:1%,70,000K:1.5%)(冷氣需IN50台OUT30)-01~12 | K30: TW005281001B | L30: 映象國際 | M30: TW | N30: 百貨 | O30: % | P30: 年度達成獎勵(60,000K:1%,70,000K:1.5%)(冷氣需IN50台OUT30) | R30: 全產品 | T30: 0
A31: TW006417001B | B31: TW006417001B | C31: TT-TTSI-20220223-0004 | D31: ASPM2022021801-CAC-TW006417-YearInTarget48M-2022 | E31: 2022-02-24 | F31: 2022-12-31 | G31: TTSI | H31: 2022-02-24 | I31: 2022-12-31 | J31: 協議-商業冷氣-年度進貨達未稅48M獎勵1%-02.24~12.31 | K31: TW006417001B | L31: 藍青國際股份有限公司 | M31: TW | O31: % | P31: 年度進貨達未稅48M獎勵1% | R31: 商用空調 | T31: 0
A32: TW005578001B | B32: TW005578001B | C32: TT-TTSI-20211222-0022 | D32: Contract-ALL-TW005578-SEASON-2022-Q2 | E32: 2022-04-01 | F32: 2022-06-30 | G32: TTSI | H32: 2022-04-01 | I32: 2022-06-30 | J32: 合約-全產品-季獎勵-04~06 | K32: TW005578001B | L32: 大同綜合訊電股份有限公司 | M32: TW | N32: MMCS-大同 | O32: % | P32: 季獎勵季獎勵(2,500萬*3%，4,500萬*4%，6,000萬*5%) | R32: 全產品 | T32: 0
A33: TW002758001B | B33: TW002758001B | C33: TT-TTSI-20220317-0003 | D33: DEPT2112D015-LTV-TW002758-CornerSupport(Y1)-202203~202402 | E33: 2022-03-01 | F33: 2023-02-28 | G33: TTSI | H33: 2022-03-01 | I33: 2023-02-28 | J33: 協議-電視-高雄SOGOCorner補助(基本目標每年達3,230,000未稅，補助161,500未稅，Year1)-202203~202402 | K33: TW002758001B | L33: 秀翔 | M33: TW | N33: 百貨 | O33: % | P33: 高雄SOGOCorner補助(基本目標每年達3,230,000未稅，補助161,500未稅，Year1) | R33: 電視 | S33: 0.8 | T33: 0
A34: TW002758001B | B34: TW002758001B | C34: TT-TTSI-20220317-0006 | D34: DEPT2112D015-HA-TW002758-CornerSupport(Y1)-202203~202402 | E34: 2022-03-01 | F34: 2023-02-28 | G34: TTSI | H34: 2022-03-01 | I34: 2023-02-28 | J34: 協議-冰洗-高雄SOGOCorner補助(基本目標每年達3,410,000未稅，補助170,500未稅，Year1)-202203~202402 | K34: TW002758001B | L34: 秀翔 | M34: TW | N34: 百貨 | O34: % | P34: 高雄SOGOCorner補助(基本目標每年達3,410,000未稅，補助170,500未稅，Year1) | R34: 冰箱 | S34: 0.4 | T34: 0
A35: TW002758001B | B35: TW002758001B | C35: TT-TTSI-20220317-0006 | D35: DEPT2112D015-HA-TW002758-CornerSupport(Y1)-202203~202402 | E35: 2022-03-01 | F35: 2023-02-28 | G35: TTSI | H35: 2022-03-01 | I35: 2023-02-28 | J35: 協議-冰洗-高雄SOGOCorner補助(基本目標每年達3,410,000未稅，補助170,500未稅，Year1)-202203~202402 | K35: TW002758001B | L35: 秀翔 | M35: TW | N35: 百貨 | O35: % | P35: 高雄SOGOCorner補助(基本目標每年達3,410,000未稅，補助170,500未稅，Year1) | R35: 洗衣機 | S35: 0.4 | T35: 0
A36: TW002750001B | B36: TW002750001B | C36: TT-TTSI-20220317-0009 | D36: DEPT2112D015-LTV-TW002750-CornerSupport(Y1)-202203~202402 | E36: 2022-03-01 | F36: 2023-02-28 | G36: TTSI | H36: 2022-03-01 | I36: 2023-02-28 | J36: 協議-電視-台南三井Corner補助(基本目標每年達3,980,000未稅，補助199,000未稅，Year1)-202203~202402 | K36: TW002750001B | L36: 集雅社 | M36: TW | N36: 百貨 | O36: % | P36: 台南三井Corner補助(基本目標每年達3,980,000未稅，補助199,000未稅，Year1) | R36: 電視 | S36: 0.1 | T36: 0
A37: TW006857001B | B37: TW006857001B | C37: TT-NTSI-20200514-0015 | D37: TPB2004A022-TW006857-RentalFeeSupport-Y2-202204 | E37: 2022-04-01 | F37: 2022-04-30 | G37: NTSI | H37: 2022-04-01 | I37: 2022-04-30 | J37: 協議-誠鴻汐止大同路分店租金補助-04.04-2Q-L(基本目標每月達50萬未稅，補助上限1.75萬含稅，Year2) | K37: TW006857001B | L37: 誠鴻電器 | M37: TW | N37: 台北營銷處 | O37: % | P37: 誠鴻汐止大同路分店租金補助(基本目標每月達50萬未稅，補助上限1.75萬含稅，Year2) | R37: 全產品 | T37: 0
A38: TW007094001B | B38: TW007094001B | C38: TT-NTSI-20210323-0009 | D38: YLB21030006-All-TW007094-RentalFeeSupport-Y2-202204 | E38: 2022-04-01 | F38: 2022-04-30 | G38: NTSI | H38: 2022-04-01 | I38: 2022-04-30 | J38: 協議-全產品-遠東花蓮分店租金補助(基本目標每月達50萬未稅，補助上限16,250含稅，Year2)-04-04 | K38: TW007094001B | L38: 遠東空調家電有限公司 | M38: TW | N38: 台北營銷處 | O38: % | P38: 遠東花蓮分店租金補助(基本目標每月達50萬未稅，補助上限16,250含稅，Year2) | R38: 全產品 | T38: 0
A39: TW007112001B | B39: TW007112001B | C39: TT-NTSI-20210324-0008 | D39: DJB1910C0099-ALL-TW007112-TW007112-Rental Fee Year 3-202204 | E39: 2022-04-01 | F39: 2022-04-30 | G39: NTSI | H39: 2022-04-01 | I39: 2022-04-30 | J39: 協議-全產品 第三年租金補助(每月達50萬以上0.625%,上限為7千5 (含))-04.04 | K39: TW007112001B | L39: 桂安家電空調 | M39: TW | N39: 台中營銷處 | O39: % | P39: 全產品 第三年租金補助(每月達50萬以上0.625%,上限為7千5 (含)) | R39: 全產品 | T39: 0
A40: TW002291001B | B40: TW002291001B | C40: TT-NTSI-20210616-0002 | D40: DWB2106X05-ALL-TW002291-RentFee-202204 | E40: 2022-04-01 | F40: 2022-04-30 | G40: NTSI | H40: 2022-04-01 | I40: 2022-04-30 | J40: 公司-全產品-大江租金補助(未達150萬3.5%、達150萬~未滿180萬4%、180萬以上4.3%)-04~04 | K40: TW002291001B | L40: 金一電器 | M40: TW | N40: 桃竹營銷處 | O40: % | P40: 大江租金補助(未達150萬3.5%、達150萬~未滿180萬4%、180萬以上4.3%) | R40: 全產品 | T40: 0
A41: TW004758001B | B41: TW004758001B | C41: TT-NTSI-20210929-0047 | D41: GWB2103D027-ALL-TW004758-5662-RentalFeeSupport-202204 | E41: 2022-04-01 | F41: 2022-04-30 | G41: NTSI | H41: 2022-04-01 | I41: 2022-04-30 | J41: 協議-家電-統勝同勝左營HOLA分店租金補助(目標合併需達50萬未稅,補助上限5萬含稅)-04~04-非制式分店辦法 | K41: TW004758001B | L41: 同勝電器 | M41: TW | N41: 高屏營銷處 | O41: % | P41: 統勝同勝左營HOLA分店租金補助(目標合併需達50萬未稅,補助上限5萬含稅) | R41: 全產品 | T41: 0
A42: TW005662001B | B42: TW005662001B | C42: TT-NTSI-20210929-0047 | D42: GWB2103D027-ALL-TW004758-5662-RentalFeeSupport-202204 | E42: 2022-04-01 | F42: 2022-04-30 | G42: NTSI | H42: 2022-04-01 | I42: 2022-04-30 | J42: 協議-家電-統勝同勝左營HOLA分店租金補助(目標合併需達50萬未稅,補助上限5萬含稅)-04~04-非制式分店辦法 | K42: TW005662001B | L42: 統勝電器有限公司 | M42: TW | N42: D | O42: % | P42: 統勝同勝左營HOLA分店租金補助(目標合併需達50萬未稅,補助上限5萬含稅) | R42: 全產品 | T42: 0
A43: TW002347001B | B43: TW002347001B | C43: TT-NTSI-20211213-0023 | D43: HETV20211213-TV-TW002347-Qty SIA SpecificModel-202204 | E43: 2022-04-01 | F43: 2022-04-30 | G43: NTSI | H43: 2022-04-01 | I43: 2022-04-30 | J43: 公司-電視-批店55n65NANO76進獎台折(10台以上2%)-04~04 | K43: TW002347001B | L43: 得興電器 | M43: TW | N43: 桃竹營銷處 | O43: % | P43: 批店55n65NANO76進獎台折(10台以上2%) | R43: 55NANO76SPA.ATT | T43: 0
A44: TW002347001B | B44: TW002347001B | C44: TT-NTSI-20211213-0023 | D44: HETV20211213-TV-TW002347-Qty SIA SpecificModel-202204 | E44: 2022-04-01 | F44: 2022-04-30 | G44: NTSI | H44: 2022-04-01 | I44: 2022-04-30 | J44: 公司-電視-批店55n65NANO76進獎台折(10台以上2%)-04~04 | K44: TW002347001B | L44: 得興電器 | M44: TW | N44: 桃竹營銷處 | O44: % | P44: 批店55n65NANO76進獎台折(10台以上2%) | R44: 65NANO76SPA.ATT | T44: 0
A45: TW004840001B | B45: TW004840001B | C45: TT-NTSI-20211213-0024 | D45: HETV20211213-TV-TW004840-Qty SIA SpecificModel-202204 | E45: 2022-04-01 | F45: 2022-04-30 | G45: NTSI | H45: 2022-04-01 | I45: 2022-04-30 | J45: 公司-電視-批店55n65NANO76進獎台折(10台以上2%)-04~04 | K45: TW004840001B | L45: 仰光有限公司 | M45: TW | N45: 台中營銷處 | O45: % | P45: 批店55n65NANO76進獎台折(10台以上2%) | R45: 55NANO76SPA.ATT | T45: 0
A46: TW004840001B | B46: TW004840001B | C46: TT-NTSI-20211213-0024 | D46: HETV20211213-TV-TW004840-Qty SIA SpecificModel-202204 | E46: 2022-04-01 | F46: 2022-04-30 | G46: NTSI | H46: 2022-04-01 | I46: 2022-04-30 | J46: 公司-電視-批店55n65NANO76進獎台折(10台以上2%)-04~04 | K46: TW004840001B | L46: 仰光有限公司 | M46: TW | N46: 台中營銷處 | O46: % | P46: 批店55n65NANO76進獎台折(10台以上2%) | R46: 65NANO76SPA.ATT | T46: 0
A47: TW005301001B | B47: TW005301001B | C47: TT-NTSI-20211213-0026 | D47: HETV20211213-TV-TW005301-Qty SIA SpecificModel-202204 | E47: 2022-04-01 | F47: 2022-04-30 | G47: NTSI | H47: 2022-04-01 | I47: 2022-04-30 | J47: 公司-電視-批店55n65NANO76進獎台折(10台以上2%)-04~04 | K47: TW005301001B | L47: 南霸天電器 | M47: TW | N47: 高屏營銷處 | O47: % | P47: 批店55n65NANO76進獎台折(10台以上2%) | R47: 55NANO76SPA.ATT | T47: 0
A48: TW005301001B | B48: TW005301001B | C48: TT-NTSI-20211213-0026 | D48: HETV20211213-TV-TW005301-Qty SIA SpecificModel-202204 | E48: 2022-04-01 | F48: 2022-04-30 | G48: NTSI | H48: 2022-04-01 | I48: 2022-04-30 | J48: 公司-電視-批店55n65NANO76進獎台折(10台以上2%)-04~04 | K48: TW005301001B | L48: 南霸天電器 | M48: TW | N48: 高屏營銷處 | O48: % | P48: 批店55n65NANO76進獎台折(10台以上2%) | R48: 65NANO76SPA.ATT | T48: 0
A49: TW006155001B | B49: TW006155001B | C49: TT-NTSI-20211213-0035 | D49: HETV20211213-TV-TW006155-Qty SIA SpecificModel-202204 | E49: 2022-04-01 | F49: 2022-04-30 | G49: NTSI | H49: 2022-04-01 | I49: 2022-04-30 | J49: 公司-電視-批店55n65NANO76進獎台折(10台以上2%)-04~04 | K49: TW006155001B | L49: 東紳科技 | M49: TW | N49: 嘉南營銷處 | O49: % | P49: 批店55n65NANO76進獎台折(10台以上2%) | R49: 55NANO76SPA.ATT | T49: 0
A50: TW006155001B | B50: TW006155001B | C50: TT-NTSI-20211213-0035 | D50: HETV20211213-TV-TW006155-Qty SIA SpecificModel-202204 | E50: 2022-04-01 | F50: 2022-04-30 | G50: NTSI | H50: 2022-04-01 | I50: 2022-04-30 | J50: 公司-電視-批店55n65NANO76進獎台折(10台以上2%)-04~04 | K50: TW006155001B | L50: 東紳科技 | M50: TW | N50: 嘉南營銷處 | O50: % | P50: 批店55n65NANO76進獎台折(10台以上2%) | R50: 65NANO76SPA.ATT | T50: 0
A51: TW005702001B | B51: TW005702001B | C51: TT-NTSI-20211213-0046 | D51: HETV20211213-TV-TW005702-Qty SIA SpecificModel-202204 | E51: 2022-04-01 | F51: 2022-04-30 | G51: NTSI | H51: 2022-04-01 | I51: 2022-04-30 | J51: 公司-電視-批店55n65NANO76進獎台折(10台以上2%)-04~04 | K51: TW005702001B | L51: 京東科技 | M51: TW | N51: 台北營銷處 | O51: % | P51: 批店55n65NANO76進獎台折(10台以上2%) | R51: 55NANO76SPA.ATT | T51: 0
A52: TW005702001B | B52: TW005702001B | C52: TT-NTSI-20211213-0046 | D52: HETV20211213-TV-TW005702-Qty SIA SpecificModel-202204 | E52: 2022-04-01 | F52: 2022-04-30 | G52: NTSI | H52: 2022-04-01 | I52: 2022-04-30 | J52: 公司-電視-批店55n65NANO76進獎台折(10台以上2%)-04~04 | K52: TW005702001B | L52: 京東科技 | M52: TW | N52: 台北營銷處 | O52: % | P52: 批店55n65NANO76進獎台折(10台以上2%) | R52: 65NANO76SPA.ATT | T52: 0
A53: TW006359001B | B53: TW006359001B | C53: TT-NTSI-20211228-0059 | D53: HAPMS20221227-WM-TW006359-SaleGrowthIncentive-Month-202204 | E53: 2022-04-01 | F53: 2022-04-30 | G53: NTSI | H53: 2022-04-01 | I53: 2022-04-30 | J53: 公司-洗衣機-月成長達成獎勵(同期Sellin成長15%給2.5%,25%給3%)-04~04 | K53: TW006359001B | L53: 展碁國際 | M53: TW | N53: ONLINE | O53: % | P53: 月成長達成獎勵(同期Sellin成長15%給2.5%,25%給3%) | R53: 洗衣機 | T53: 0
A54: TW007007001B | B54: TW007007001B | C54: TT-NTSI-20211228-0066 | D54: HAPMS20221227-RF-TW007007-SaleGrowthIncentive-2022Q2 | E54: 2022-04-01 | F54: 2022-06-30 | G54: NTSI | H54: 2022-04-01 | I54: 2022-06-30 | J54: 公司-冰箱-季成長達成獎勵(同期Sellin成長20%給2%)-04~06 | K54: TW007007001B | L54: 山淬股份有限公司 | M54: TW | N54: ONLINE | O54: % | P54: 季成長達成獎勵(同期Sellin成長20%給2%) | R54: 冰箱 | T54: 0
A55: TW006359001B | B55: TW006359001B | C55: TT-NTSI-20211228-0072 | D55: HAPMS20221227-RF-TW006359-SaleGrowthIncentive-2022Q2 | E55: 2022-04-01 | F55: 2022-06-30 | G55: NTSI | H55: 2022-04-01 | I55: 2022-06-30 | J55: 公司-冰箱-季成長達成獎勵(同期Sellin成長20%給2%)-04~06 | K55: TW006359001B | L55: 展碁國際 | M55: TW | N55: ONLINE | O55: % | P55: 季成長達成獎勵(同期Sellin成長20%給2%) | R55: 冰箱 | T55: 0
A56: TW007007001B | B56: TW007007001B | C56: TT-NTSI-20211228-0080 | D56: HAPMS20221227-RF-TW007007-SaleGrowthIncentive-Month-202204 | E56: 2022-04-01 | F56: 2022-04-30 | G56: NTSI | H56: 2022-04-01 | I56: 2022-04-30 | J56: 公司-冰箱-月成長達成獎勵(同期Sellin成長15%給2.5%,20%給3%)-04~04 | K56: TW007007001B | L56: 山淬股份有限公司 | M56: TW | N56: ONLINE | O56: % | P56: 月成長達成獎勵(同期Sellin成長15%給2.5%,20%給3%) | R56: 冰箱 | T56: 0
A57: TW007007001B | B57: TW007007001B | C57: TT-NTSI-20211228-0086 | D57: HAPMS20221227-WM-TW007007-SaleGrowthIncentive-Month-202204 | E57: 2022-04-01 | F57: 2022-04-30 | G57: NTSI | H57: 2022-04-01 | I57: 2022-04-30 | J57: 公司-洗衣機-月成長達成獎勵(同期Sellin成長15%給2.5%,25%給3%)-04~04 | K57: TW007007001B | L57: 山淬股份有限公司 | M57: TW | N57: ONLINE | O57: % | P57: 月成長達成獎勵(同期Sellin成長15%給2.5%,25%給3%) | R57: 洗衣機 | T57: 0
A58: TW006359001B | B58: TW006359001B | C58: TT-NTSI-20211228-0090 | D58: HAPMS20221227-WM-TW006359-SaleGrowthIncentive-2022Q2 | E58: 2022-04-01 | F58: 2022-06-30 | G58: NTSI | H58: 2022-04-01 | I58: 2022-06-30 | J58: 公司-洗衣機-季成長達成獎勵(同期Sellin成長20%給3%)-04~06 | K58: TW006359001B | L58: 展碁國際 | M58: TW | N58: ONLINE | O58: % | P58: 季成長達成獎勵(同期Sellin成長20%給3%) | R58: 洗衣機 | T58: 0
A59: TW007007001B | B59: TW007007001B | C59: TT-NTSI-20211228-0094 | D59: HAPMS20221227-WM-TW007007-SaleGrowthIncentive-2022Q2 | E59: 2022-04-01 | F59: 2022-06-30 | G59: NTSI | H59: 2022-04-01 | I59: 2022-06-30 | J59: 公司-洗衣機-季成長達成獎勵(同期Sellin成長20%給2%)-04~06 | K59: TW007007001B | L59: 山淬股份有限公司 | M59: TW | N59: ONLINE | O59: % | P59: 季成長達成獎勵(同期Sellin成長20%給2%) | R59: 洗衣機 | T59: 0
A60: TW006359001B | B60: TW006359001B | C60: TT-NTSI-20211228-0108 | D60: HAPMS20221227-RF-TW006359-SaleGrowthIncentive-Month-202204 | E60: 2022-04-01 | F60: 2022-04-30 | G60: NTSI | H60: 2022-04-01 | I60: 2022-04-30 | J60: 公司-冰箱-月成長達成獎勵(同期Sellin成長15%給2.5%,20%給3%)-04~04 | K60: TW006359001B | L60: 展碁國際 | M60: TW | N60: ONLINE | O60: % | P60: 月成長達成獎勵(同期Sellin成長15%給2.5%,20%給3%) | R60: 冰箱 | T60: 0
A61: TW004399001B | B61: TW004399001B | C61: TT-NTSI-20220111-0017 | D61: TPH2201A004-TV-TW004399-Sale target-2022Q2 | E61: 2022-04-01 | F61: 2022-06-30 | G61: NTSI | H61: 2022-04-01 | I61: 2022-06-30 | J61: 公司-電視-季進貨達成獎勵(5M*1%)-04~06 | K61: TW004399001B | L61: 祥建科技 | M61: TW | N61: 台北營銷處 | O61: % | P61: 季進貨達成獎勵(5M*1%) | R61: 電視 | T61: 0
A62: TW004399001B | B62: TW004399001B | C62: TT-NTSI-20220111-0031 | D62: TPH2201A004-RF-TW004399-Month Sale target-202204 | E62: 2022-04-01 | F62: 2022-04-30 | G62: NTSI | H62: 2022-04-01 | I62: 2022-04-30 | J62: 公司-冰箱-月進貨達成獎勵(0.6M*5%)-04~04 | K62: TW004399001B | L62: 祥建科技 | M62: TW | N62: 台北營銷處 | O62: % | P62: 月進貨達成獎勵(0.6M*5%) | R62: 冰箱 | T62: 0
A63: TW004399001B | B63: TW004399001B | C63: TT-NTSI-20220111-0033 | D63: TPH2201A004-TV-TW004399-Month Sale target-202204 | E63: 2022-04-01 | F63: 2022-04-30 | G63: NTSI | H63: 2022-04-01 | I63: 2022-04-30 | J63: 公司-電視-月進貨達成獎勵(1.5M*5%)-04.04 | K63: TW004399001B | L63: 祥建科技 | M63: TW | N63: 台北營銷處 | O63: % | P63: 月進貨達成獎勵(1.5M*5%) | R63: 電視 | T63: 0
A64: =IFERROR(VLOOKUP(N64,多CODE,2,0),IF(RIGHT($B64,1)="H",LEFT($B64,11)&"B",IFERROR(VLOOKUP($B64,SHIP,3,0),$B64))) -> TW004399001B | B64: TW004399001B | C64: TT-NTSI-20220111-0038 | D64: TPH2201A004-RF-TW004399-Sale target-2022Q2 | E64: 2022-04-01 | F64: 2022-06-30 | G64: =MID(C64,4,4) -> NTSI | H64: =IF(OR($G64="NTSI",$G64="TTSI"),$E64,LEFT($E64,4)&"/"&MID($E64,5,2)&"/"&RIGHT($E64,2)) -> 2022-04-01 | I64: =IF(OR($G64="NTSI",$G64="TTSI"),$F64,LEFT($F64,4)&"/"&MID($F64,5,2)&"/"&RIGHT($F64,2)) -> 2022-06-30 | J64: 公司-冰箱-季進貨達成獎勵(1.8M*1%)-04~06 | K64: TW004399001B | L64: 祥建科技 | M64: TW | N64: 台北營銷處 | O64: % | P64: 季進貨達成獎勵(1.8M*1%) | R64: 冰箱 | T64: 0
A65: TW004399001B | B65: TW004399001B | C65: TT-NTSI-20220111-0058 | D65: TPH2201A004-WM-TW004399-Month Sale target-202204 | E65: 2022-04-01 | F65: 2022-04-30 | G65: NTSI | H65: 2022-04-01 | I65: 2022-04-30 | J65: 公司-洗衣機-月進貨達成獎勵(2.7M*5%)-04~04 | K65: TW004399001B | L65: 祥建科技 | M65: TW | N65: 台北營銷處 | O65: % | P65: 月進貨達成獎勵(2.7M*5%) | R65: 洗衣機 | T65: 0
A66: TW004399001B | B66: TW004399001B | C66: TT-NTSI-20220111-0059 | D66: TPH2201A004-WM-TW004399-Sale target-2022Q2 | E66: 2022-04-01 | F66: 2022-06-30 | G66: NTSI | H66: 2022-04-01 | I66: 2022-06-30 | J66: 公司-洗衣機-季進貨達成獎勵(8.1M*1%)-04~06 | K66: TW004399001B | L66: 祥建科技 | M66: TW | N66: 台北營銷處 | O66: % | P66: 季進貨達成獎勵(8.1M*1%) | R66: 洗衣機 | T66: 0
A67: TW005617001B | B67: TW005617001B | C67: TT-NTSI-20220316-0001 | D67: DWB2203A001-TV-TW005617-Specific Model Sellin Target Rebate-2022Q2 | E67: 2022-04-01 | F67: 2022-06-30 | G67: NTSI | H67: 2022-04-01 | I67: 2022-06-30 | J67: 公司-電視-OLED、QNED及75吋以上NANO季目標達成進貨獎勵3%(75吋以上OLED:5%)(進貨目標未稅150萬)-04~06 | K67: TW005617001B | L67: 麥仕視聽音響有限公司 | M67: TW | N67: 桃竹營銷處 | O67: % | P67: OLED、QNED及75吋以上NANO季目標達成進貨獎勵3%(75吋以上OLED:5%)(進貨目標未稅150萬) | R67: 電視 | T67: 0
A68: TW007176002B | B68: TW007176002B | C68: TT-NTSI-20220317-0001 | D68: DWB2203C002-TV-TW007176-Target Sellin Rebate-2022Q2 | E68: 2022-04-01 | F68: 2022-06-30 | G68: NTSI | H68: 2022-04-01 | I68: 2022-06-30 | J68: 公司-電視-季目標達成進貨獎勵5%(進貨目標900萬)-04~06 | K68: TW007176002B | L68: 雨林新零售 | M68: TW | N68: 桃竹營銷處 | O68: % | P68: 季目標達成進貨獎勵5%(進貨目標900萬) | R68: 電視 | T68: 0
A69: TW004724001B | B69: TW004724001B | C69: TT-NTSI-20220317-0002 | D69: DWB2203C003-TV-TW004724-Specific Model Sellin Target Rebate-2022Q2 | E69: 2022-04-01 | F69: 2022-06-30 | G69: NTSI | H69: 2022-04-01 | I69: 2022-06-30 | J69: 公司-電視-OLED、QNED及75吋以上NANO季目標達成進貨獎勵3%(77吋以上OLED:5%)(進貨目標未稅275萬)-04~06 | K69: TW004724001B | L69: 新視紀科技 | M69: TW | N69: 桃竹營銷處 | O69: % | P69: OLED、QNED及75吋以上NANO季目標達成進貨獎勵3%(77吋以上OLED:5%)(進貨目標未稅275萬) | R69: 電視 | T69: 0
A70: SPD_TT | B70: SPD_TT | C70: TT-NTSI-20220323-0001 | D70: HETV20220322-TV-Dealer SPD-Qty SIA SpecificModel-202204 | E70: 2022-04-01 | F70: 2022-04-30 | G70: NTSI | H70: 2022-04-01 | I70: 2022-04-30 | J70: 公司-電視-專售店進獎台折2%(10台3%)(4K季級不季獎)-04~04 | K70: SPD_TT | L70: SPD_TT | M70: TW | N70: SPD_TT | O70: % | P70: 專售店進獎台折2%(10台3%)(4K季級不季獎) | R70: OLED48C1PSB.ATT | T70: 0
A71: SPD_TT | B71: SPD_TT | C71: TT-NTSI-20220323-0001 | D71: HETV20220322-TV-Dealer SPD-Qty SIA SpecificModel-202204 | E71: 2022-04-01 | F71: 2022-04-30 | G71: NTSI | H71: 2022-04-01 | I71: 2022-04-30 | J71: 公司-電視-專售店進獎台折2%(10台3%)(4K季級不季獎)-04~04 | K71: SPD_TT | L71: SPD_TT | M71: TW | N71: SPD_TT | O71: % | P71: 專售店進獎台折2%(10台3%)(4K季級不季獎) | R71: 65NANO91SPA.ATT | T71: 0
A72: SPD_TT | B72: SPD_TT | C72: TT-NTSI-20220323-0001 | D72: HETV20220322-TV-Dealer SPD-Qty SIA SpecificModel-202204 | E72: 2022-04-01 | F72: 2022-04-30 | G72: NTSI | H72: 2022-04-01 | I72: 2022-04-30 | J72: 公司-電視-專售店進獎台折2%(10台3%)(4K季級不季獎)-04~04 | K72: SPD_TT | L72: SPD_TT | M72: TW | N72: SPD_TT | O72: % | P72: 專售店進獎台折2%(10台3%)(4K季級不季獎) | R72: 55NANO91SPA.ATT | T72: 0
A73: SPD_TT | B73: SPD_TT | C73: TT-NTSI-20220323-0001 | D73: HETV20220322-TV-Dealer SPD-Qty SIA SpecificModel-202204 | E73: 2022-04-01 | F73: 2022-04-30 | G73: NTSI | H73: 2022-04-01 | I73: 2022-04-30 | J73: 公司-電視-專售店進獎台折2%(10台3%)(4K季級不季獎)-04~04 | K73: SPD_TT | L73: SPD_TT | M73: TW | N73: SPD_TT | O73: % | P73: 專售店進獎台折2%(10台3%)(4K季級不季獎) | R73: 65NANO86SPA.ATT | T73: 0
A74: SPD_TT | B74: SPD_TT | C74: TT-NTSI-20220323-0001 | D74: HETV20220322-TV-Dealer SPD-Qty SIA SpecificModel-202204 | E74: 2022-04-01 | F74: 2022-04-30 | G74: NTSI | H74: 2022-04-01 | I74: 2022-04-30 | J74: 公司-電視-專售店進獎台折2%(10台3%)(4K季級不季獎)-04~04 | K74: SPD_TT | L74: SPD_TT | M74: TW | N74: SPD_TT | O74: % | P74: 專售店進獎台折2%(10台3%)(4K季級不季獎) | R74: 55NANO86SPA.ATT | T74: 0
A75: SPD_TT | B75: SPD_TT | C75: TT-NTSI-20220323-0001 | D75: HETV20220322-TV-Dealer SPD-Qty SIA SpecificModel-202204 | E75: 2022-04-01 | F75: 2022-04-30 | G75: NTSI | H75: 2022-04-01 | I75: 2022-04-30 | J75: 公司-電視-專售店進獎台折2%(10台3%)(4K季級不季獎)-04~04 | K75: SPD_TT | L75: SPD_TT | M75: TW | N75: SPD_TT | O75: % | P75: 專售店進獎台折2%(10台3%)(4K季級不季獎) | R75: 55NANO76SPA.ATT | T75: 0
A76: SPD_TT | B76: SPD_TT | C76: TT-NTSI-20220323-0001 | D76: HETV20220322-TV-Dealer SPD-Qty SIA SpecificModel-202204 | E76: 2022-04-01 | F76: 2022-04-30 | G76: NTSI | H76: 2022-04-01 | I76: 2022-04-30 | J76: 公司-電視-專售店進獎台折2%(10台3%)(4K季級不季獎)-04~04 | K76: SPD_TT | L76: SPD_TT | M76: TW | N76: SPD_TT | O76: % | P76: 專售店進獎台折2%(10台3%)(4K季級不季獎) | R76: OLED65G1PSA.ATT | T76: 0
A77: SPD_TT | B77: SPD_TT | C77: TT-NTSI-20220323-0001 | D77: HETV20220322-TV-Dealer SPD-Qty SIA SpecificModel-202204 | E77: 2022-04-01 | F77: 2022-04-30 | G77: NTSI | H77: 2022-04-01 | I77: 2022-04-30 | J77: 公司-電視-專售店進獎台折2%(10台3%)(4K季級不季獎)-04~04 | K77: SPD_TT | L77: SPD_TT | M77: TW | N77: SPD_TT | O77: % | P77: 專售店進獎台折2%(10台3%)(4K季級不季獎) | R77: OLED55C1PSB.ATT | T77: 0
A78: SPD_TT | B78: SPD_TT | C78: TT-NTSI-20220323-0001 | D78: HETV20220322-TV-Dealer SPD-Qty SIA SpecificModel-202204 | E78: 2022-04-01 | F78: 2022-04-30 | G78: NTSI | H78: 2022-04-01 | I78: 2022-04-30 | J78: 公司-電視-專售店進獎台折2%(10台3%)(4K季級不季獎)-04~04 | K78: SPD_TT | L78: SPD_TT | M78: TW | N78: SPD_TT | O78: % | P78: 專售店進獎台折2%(10台3%)(4K季級不季獎) | R78: 75QNED96SPA.ATT | T78: 0
A79: SPD_TT | B79: SPD_TT | C79: TT-NTSI-20220323-0001 | D79: HETV20220322-TV-Dealer SPD-Qty SIA SpecificModel-202204 | E79: 2022-04-01 | F79: 2022-04-30 | G79: NTSI | H79: 2022-04-01 | I79: 2022-04-30 | J79: 公司-電視-專售店進獎台折2%(10台3%)(4K季級不季獎)-04~04 | K79: SPD_TT | L79: SPD_TT | M79: TW | N79: SPD_TT | O79: % | P79: 專售店進獎台折2%(10台3%)(4K季級不季獎) | R79: 65QNED91SPA.ATT | T79: 0
A80: SPD_TT | B80: SPD_TT | C80: TT-NTSI-20220323-0001 | D80: HETV20220322-TV-Dealer SPD-Qty SIA SpecificModel-202204 | E80: 2022-04-01 | F80: 2022-04-30 | G80: NTSI | H80: 2022-04-01 | I80: 2022-04-30 | J80: 公司-電視-專售店進獎台折2%(10台3%)(4K季級不季獎)-04~04 | K80: SPD_TT | L80: SPD_TT | M80: TW | N80: SPD_TT | O80: % | P80: 專售店進獎台折2%(10台3%)(4K季級不季獎) | R80: 75NANO86SPA.ATT | T80: 0
A81: SPD_TT | B81: SPD_TT | C81: TT-NTSI-20220323-0001 | D81: HETV20220322-TV-Dealer SPD-Qty SIA SpecificModel-202204 | E81: 2022-04-01 | F81: 2022-04-30 | G81: NTSI | H81: 2022-04-01 | I81: 2022-04-30 | J81: 公司-電視-專售店進獎台折2%(10台3%)(4K季級不季獎)-04~04 | K81: SPD_TT | L81: SPD_TT | M81: TW | N81: SPD_TT | O81: % | P81: 專售店進獎台折2%(10台3%)(4K季級不季獎) | R81: 65NANO76SPA.ATT | T81: 0
A82: SPD_TT | B82: SPD_TT | C82: TT-NTSI-20220323-0001 | D82: HETV20220322-TV-Dealer SPD-Qty SIA SpecificModel-202204 | E82: 2022-04-01 | F82: 2022-04-30 | G82: NTSI | H82: 2022-04-01 | I82: 2022-04-30 | J82: 公司-電視-專售店進獎台折2%(10台3%)(4K季級不季獎)-04~04 | K82: SPD_TT | L82: SPD_TT | M82: TW | N82: SPD_TT | O82: % | P82: 專售店進獎台折2%(10台3%)(4K季級不季獎) | R82: OLED88Z1PSA.ATT | T82: 0
A83: SPD_TT | B83: SPD_TT | C83: TT-NTSI-20220323-0001 | D83: HETV20220322-TV-Dealer SPD-Qty SIA SpecificModel-202204 | E83: 2022-04-01 | F83: 2022-04-30 | G83: NTSI | H83: 2022-04-01 | I83: 2022-04-30 | J83: 公司-電視-專售店進獎台折2%(10台3%)(4K季級不季獎)-04~04 | K83: SPD_TT | L83: SPD_TT | M83: TW | N83: SPD_TT | O83: % | P83: 專售店進獎台折2%(10台3%)(4K季級不季獎) | R83: OLED77C1PSB.ATT | T83: 0
A84: SPD_TT | B84: SPD_TT | C84: TT-NTSI-20220323-0001 | D84: HETV20220322-TV-Dealer SPD-Qty SIA SpecificModel-202204 | E84: 2022-04-01 | F84: 2022-04-30 | G84: NTSI | H84: 2022-04-01 | I84: 2022-04-30 | J84: 公司-電視-專售店進獎台折2%(10台3%)(4K季級不季獎)-04~04 | K84: SPD_TT | L84: SPD_TT | M84: TW | N84: SPD_TT | O84: % | P84: 專售店進獎台折2%(10台3%)(4K季級不季獎) | R84: 86QNED99SPB.ATT | T84: 0
A85: SPD_TT | B85: SPD_TT | C85: TT-NTSI-20220323-0001 | D85: HETV20220322-TV-Dealer SPD-Qty SIA SpecificModel-202204 | E85: 2022-04-01 | F85: 2022-04-30 | G85: NTSI | H85: 2022-04-01 | I85: 2022-04-30 | J85: 公司-電視-專售店進獎台折2%(10台3%)(4K季級不季獎)-04~04 | K85: SPD_TT | L85: SPD_TT | M85: TW | N85: SPD_TT | O85: % | P85: 專售店進獎台折2%(10台3%)(4K季級不季獎) | R85: 86NANO91SPA.ATT | T85: 0
A86: SPD_TT | B86: SPD_TT | C86: TT-NTSI-20220323-0001 | D86: HETV20220322-TV-Dealer SPD-Qty SIA SpecificModel-202204 | E86: 2022-04-01 | F86: 2022-04-30 | G86: NTSI | H86: 2022-04-01 | I86: 2022-04-30 | J86: 公司-電視-專售店進獎台折2%(10台3%)(4K季級不季獎)-04~04 | K86: SPD_TT | L86: SPD_TT | M86: TW | N86: SPD_TT | O86: % | P86: 專售店進獎台折2%(10台3%)(4K季級不季獎) | R86: 55UP7750PSB.ATT | T86: 0
A87: SPD_TT | B87: SPD_TT | C87: TT-NTSI-20220323-0001 | D87: HETV20220322-TV-Dealer SPD-Qty SIA SpecificModel-202204 | E87: 2022-04-01 | F87: 2022-04-30 | G87: NTSI | H87: 2022-04-01 | I87: 2022-04-30 | J87: 公司-電視-專售店進獎台折2%(10台3%)(4K季級不季獎)-04~04 | K87: SPD_TT | L87: SPD_TT | M87: TW | N87: SPD_TT | O87: % | P87: 專售店進獎台折2%(10台3%)(4K季級不季獎) | R87: OLED83C1PSA.ATT | T87: 0
A88: SPD_TT | B88: SPD_TT | C88: TT-NTSI-20220323-0001 | D88: HETV20220322-TV-Dealer SPD-Qty SIA SpecificModel-202204 | E88: 2022-04-01 | F88: 2022-04-30 | G88: NTSI | H88: 2022-04-01 | I88: 2022-04-30 | J88: 公司-電視-專售店進獎台折2%(10台3%)(4K季級不季獎)-04~04 | K88: SPD_TT | L88: SPD_TT | M88: TW | N88: SPD_TT | O88: % | P88: 專售店進獎台折2%(10台3%)(4K季級不季獎) | R88: 65UP8050PSB.ATT | T88: 0
A89: SPD_TT | B89: SPD_TT | C89: TT-NTSI-20220323-0001 | D89: HETV20220322-TV-Dealer SPD-Qty SIA SpecificModel-202204 | E89: 2022-04-01 | F89: 2022-04-30 | G89: NTSI | H89: 2022-04-01 | I89: 2022-04-30 | J89: 公司-電視-專售店進獎台折2%(10台3%)(4K季級不季獎)-04~04 | K89: SPD_TT | L89: SPD_TT | M89: TW | N89: SPD_TT | O89: % | P89: 專售店進獎台折2%(10台3%)(4K季級不季獎) | R89: OLED77G1PSA.ATT | T89: 0
A90: SPD_TT | B90: SPD_TT | C90: TT-NTSI-20220323-0001 | D90: HETV20220322-TV-Dealer SPD-Qty SIA SpecificModel-202204 | E90: 2022-04-01 | F90: 2022-04-30 | G90: NTSI | H90: 2022-04-01 | I90: 2022-04-30 | J90: 公司-電視-專售店進獎台折2%(10台3%)(4K季級不季獎)-04~04 | K90: SPD_TT | L90: SPD_TT | M90: TW | N90: SPD_TT | O90: % | P90: 專售店進獎台折2%(10台3%)(4K季級不季獎) | R90: OLED55G1PSA.ATT | T90: 0
A91: SPD_TT | B91: SPD_TT | C91: TT-NTSI-20220323-0001 | D91: HETV20220322-TV-Dealer SPD-Qty SIA SpecificModel-202204 | E91: 2022-04-01 | F91: 2022-04-30 | G91: NTSI | H91: 2022-04-01 | I91: 2022-04-30 | J91: 公司-電視-專售店進獎台折2%(10台3%)(4K季級不季獎)-04~04 | K91: SPD_TT | L91: SPD_TT | M91: TW | N91: SPD_TT | O91: % | P91: 專售店進獎台折2%(10台3%)(4K季級不季獎) | R91: OLED65C1PSB.ATT | T91: 0
A92: SPD_TT | B92: SPD_TT | C92: TT-NTSI-20220323-0001 | D92: HETV20220322-TV-Dealer SPD-Qty SIA SpecificModel-202204 | E92: 2022-04-01 | F92: 2022-04-30 | G92: NTSI | H92: 2022-04-01 | I92: 2022-04-30 | J92: 公司-電視-專售店進獎台折2%(10台3%)(4K季級不季獎)-04~04 | K92: SPD_TT | L92: SPD_TT | M92: TW | N92: SPD_TT | O92: % | P92: 專售店進獎台折2%(10台3%)(4K季級不季獎) | R92: 75NANO91SPA.ATT | T92: 0
A93: SPD_TT | B93: SPD_TT | C93: TT-NTSI-20220323-0001 | D93: HETV20220322-TV-Dealer SPD-Qty SIA SpecificModel-202204 | E93: 2022-04-01 | F93: 2022-04-30 | G93: NTSI | H93: 2022-04-01 | I93: 2022-04-30 | J93: 公司-電視-專售店進獎台折2%(10台3%)(4K季級不季獎)-04~04 | K93: SPD_TT | L93: SPD_TT | M93: TW | N93: SPD_TT | O93: % | P93: 專售店進獎台折2%(10台3%)(4K季級不季獎) | R93: 86UP8050PSB.ATT | T93: 0
A94: SPD_TT | B94: SPD_TT | C94: TT-NTSI-20220323-0001 | D94: HETV20220322-TV-Dealer SPD-Qty SIA SpecificModel-202204 | E94: 2022-04-01 | F94: 2022-04-30 | G94: NTSI | H94: 2022-04-01 | I94: 2022-04-30 | J94: 公司-電視-專售店進獎台折2%(10台3%)(4K季級不季獎)-04~04 | K94: SPD_TT | L94: SPD_TT | M94: TW | N94: SPD_TT | O94: % | P94: 專售店進獎台折2%(10台3%)(4K季級不季獎) | R94: 65UP7750PSB.ATT | T94: 0
A95: SPD_TT | B95: SPD_TT | C95: TT-NTSI-20220323-0001 | D95: HETV20220322-TV-Dealer SPD-Qty SIA SpecificModel-202204 | E95: 2022-04-01 | F95: 2022-04-30 | G95: NTSI | H95: 2022-04-01 | I95: 2022-04-30 | J95: 公司-電視-專售店進獎台折2%(10台3%)(4K季級不季獎)-04~04 | K95: SPD_TT | L95: SPD_TT | M95: TW | N95: SPD_TT | O95: % | P95: 專售店進獎台折2%(10台3%)(4K季級不季獎) | R95: 55UP8050PSB.ATT | T95: 0
A96: DCS_TT | B96: DCS_TT | C96: TT-NTSI-20220323-0002 | D96: HETV20220322-TV-Dealer-Qty SIA SpecificModel-202204 | E96: 2022-04-01 | F96: 2022-04-30 | G96: NTSI | H96: 2022-04-01 | I96: 2022-04-30 | J96: 公司-電視-進獎台折(3台1%,7台2%,10台3%)(4K季級不季獎)-04~04 | K96: DCS_TT | L96: DCS_TT | M96: TW | N96: DCS_TT | O96: % | P96: 進獎台折(3台1%,7台2%,10台3%)(4K季級不季獎) | R96: OLED48C1PSB.ATT | T96: 0
A97: DCS_TT | B97: DCS_TT | C97: TT-NTSI-20220323-0002 | D97: HETV20220322-TV-Dealer-Qty SIA SpecificModel-202204 | E97: 2022-04-01 | F97: 2022-04-30 | G97: NTSI | H97: 2022-04-01 | I97: 2022-04-30 | J97: 公司-電視-進獎台折(3台1%,7台2%,10台3%)(4K季級不季獎)-04~04 | K97: DCS_TT | L97: DCS_TT | M97: TW | N97: DCS_TT | O97: % | P97: 進獎台折(3台1%,7台2%,10台3%)(4K季級不季獎) | R97: 65NANO91SPA.ATT | T97: 0
A98: DCS_TT | B98: DCS_TT | C98: TT-NTSI-20220323-0002 | D98: HETV20220322-TV-Dealer-Qty SIA SpecificModel-202204 | E98: 2022-04-01 | F98: 2022-04-30 | G98: NTSI | H98: 2022-04-01 | I98: 2022-04-30 | J98: 公司-電視-進獎台折(3台1%,7台2%,10台3%)(4K季級不季獎)-04~04 | K98: DCS_TT | L98: DCS_TT | M98: TW | N98: DCS_TT | O98: % | P98: 進獎台折(3台1%,7台2%,10台3%)(4K季級不季獎) | R98: 55NANO91SPA.ATT | T98: 0
A99: DCS_TT | B99: DCS_TT | C99: TT-NTSI-20220323-0002 | D99: HETV20220322-TV-Dealer-Qty SIA SpecificModel-202204 | E99: 2022-04-01 | F99: 2022-04-30 | G99: NTSI | H99: 2022-04-01 | I99: 2022-04-30 | J99: 公司-電視-進獎台折(3台1%,7台2%,10台3%)(4K季級不季獎)-04~04 | K99: DCS_TT | L99: DCS_TT | M99: TW | N99: DCS_TT | O99: % | P99: 進獎台折(3台1%,7台2%,10台3%)(4K季級不季獎) | R99: 65NANO86SPA.ATT | T99: 0
A100: DCS_TT | B100: DCS_TT | C100: TT-NTSI-20220323-0002 | D100: HETV20220322-TV-Dealer-Qty SIA SpecificModel-202204 | E100: 2022-04-01 | F100: 2022-04-30 | G100: NTSI | H100: 2022-04-01 | I100: 2022-04-30 | J100: 公司-電視-進獎台折(3台1%,7台2%,10台3%)(4K季級不季獎)-04~04 | K100: DCS_TT | L100: DCS_TT | M100: TW | N100: DCS_TT | O100: % | P100: 進獎台折(3台1%,7台2%,10台3%)(4K季級不季獎) | R100: 55NANO86SPA.ATT | T100: 0
A101: DCS_TT | B101: DCS_TT | C101: TT-NTSI-20220323-0002 | D101: HETV20220322-TV-Dealer-Qty SIA SpecificModel-202204 | E101: 2022-04-01 | F101: 2022-04-30 | G101: NTSI | H101: 2022-04-01 | I101: 2022-04-30 | J101: 公司-電視-進獎台折(3台1%,7台2%,10台3%)(4K季級不季獎)-04~04 | K101: DCS_TT | L101: DCS_TT | M101: TW | N101: DCS_TT | O101: % | P101: 進獎台折(3台1%,7台2%,10台3%)(4K季級不季獎) | R101: 55NANO76SPA.ATT | T101: 0
A102: DCS_TT | B102: DCS_TT | C102: TT-NTSI-20220323-0002 | D102: HETV20220322-TV-Dealer-Qty SIA SpecificModel-202204 | E102: 2022-04-01 | F102: 2022-04-30 | G102: NTSI | H102: 2022-04-01 | I102: 2022-04-30 | J102: 公司-電視-進獎台折(3台1%,7台2%,10台3%)(4K季級不季獎)-04~04 | K102: DCS_TT | L102: DCS_TT | M102: TW | N102: DCS_TT | O102: % | P102: 進獎台折(3台1%,7台2%,10台3%)(4K季級不季獎) | R102: OLED65G1PSA.ATT | T102: 0
A103: DCS_TT | B103: DCS_TT | C103: TT-NTSI-20220323-0002 | D103: HETV20220322-TV-Dealer-Qty SIA SpecificModel-202204 | E103: 2022-04-01 | F103: 2022-04-30 | G103: NTSI | H103: 2022-04-01 | I103: 2022-04-30 | J103: 公司-電視-進獎台折(3台1%,7台2%,10台3%)(4K季級不季獎)-04~04 | K103: DCS_TT | L103: DCS_TT | M103: TW | N103: DCS_TT | O103: % | P103: 進獎台折(3台1%,7台2%,10台3%)(4K季級不季獎) | R103: OLED55C1PSB.ATT | T103: 0
A104: DCS_TT | B104: DCS_TT | C104: TT-NTSI-20220323-0002 | D104: HETV20220322-TV-Dealer-Qty SIA SpecificModel-202204 | E104: 2022-04-01 | F104: 2022-04-30 | G104: NTSI | H104: 2022-04-01 | I104: 2022-04-30 | J104: 公司-電視-進獎台折(3台1%,7台2%,10台3%)(4K季級不季獎)-04~04 | K104: DCS_TT | L104: DCS_TT | M104: TW | N104: DCS_TT | O104: % | P104: 進獎台折(3台1%,7台2%,10台3%)(4K季級不季獎) | R104: 75QNED96SPA.ATT | T104: 0
A105: DCS_TT | B105: DCS_TT | C105: TT-NTSI-20220323-0002 | D105: HETV20220322-TV-Dealer-Qty SIA SpecificModel-202204 | E105: 2022-04-01 | F105: 2022-04-30 | G105: NTSI | H105: 2022-04-01 | I105: 2022-04-30 | J105: 公司-電視-進獎台折(3台1%,7台2%,10台3%)(4K季級不季獎)-04~04 | K105: DCS_TT | L105: DCS_TT | M105: TW | N105: DCS_TT | O105: % | P105: 進獎台折(3台1%,7台2%,10台3%)(4K季級不季獎) | R105: 65QNED91SPA.ATT | T105: 0
A106: DCS_TT | B106: DCS_TT | C106: TT-NTSI-20220323-0002 | D106: HETV20220322-TV-Dealer-Qty SIA SpecificModel-202204 | E106: 2022-04-01 | F106: 2022-04-30 | G106: NTSI | H106: 2022-04-01 | I106: 2022-04-30 | J106: 公司-電視-進獎台折(3台1%,7台2%,10台3%)(4K季級不季獎)-04~04 | K106: DCS_TT | L106: DCS_TT | M106: TW | N106: DCS_TT | O106: % | P106: 進獎台折(3台1%,7台2%,10台3%)(4K季級不季獎) | R106: 75NANO86SPA.ATT | T106: 0
A107: DCS_TT | B107: DCS_TT | C107: TT-NTSI-20220323-0002 | D107: HETV20220322-TV-Dealer-Qty SIA SpecificModel-202204 | E107: 2022-04-01 | F107: 2022-04-30 | G107: NTSI | H107: 2022-04-01 | I107: 2022-04-30 | J107: 公司-電視-進獎台折(3台1%,7台2%,10台3%)(4K季級不季獎)-04~04 | K107: DCS_TT | L107: DCS_TT | M107: TW | N107: DCS_TT | O107: % | P107: 進獎台折(3台1%,7台2%,10台3%)(4K季級不季獎) | R107: 65NANO76SPA.ATT | T107: 0
A108: DCS_TT | B108: DCS_TT | C108: TT-NTSI-20220323-0002 | D108: HETV20220322-TV-Dealer-Qty SIA SpecificModel-202204 | E108: 2022-04-01 | F108: 2022-04-30 | G108: NTSI | H108: 2022-04-01 | I108: 2022-04-30 | J108: 公司-電視-進獎台折(3台1%,7台2%,10台3%)(4K季級不季獎)-04~04 | K108: DCS_TT | L108: DCS_TT | M108: TW | N108: DCS_TT | O108: % | P108: 進獎台折(3台1%,7台2%,10台3%)(4K季級不季獎) | R108: OLED88Z1PSA.ATT | T108: 0
A109: DCS_TT | B109: DCS_TT | C109: TT-NTSI-20220323-0002 | D109: HETV20220322-TV-Dealer-Qty SIA SpecificModel-202204 | E109: 2022-04-01 | F109: 2022-04-30 | G109: NTSI | H109: 2022-04-01 | I109: 2022-04-30 | J109: 公司-電視-進獎台折(3台1%,7台2%,10台3%)(4K季級不季獎)-04~04 | K109: DCS_TT | L109: DCS_TT | M109: TW | N109: DCS_TT | O109: % | P109: 進獎台折(3台1%,7台2%,10台3%)(4K季級不季獎) | R109: OLED77C1PSB.ATT | T109: 0
A110: DCS_TT | B110: DCS_TT | C110: TT-NTSI-20220323-0002 | D110: HETV20220322-TV-Dealer-Qty SIA SpecificModel-202204 | E110: 2022-04-01 | F110: 2022-04-30 | G110: NTSI | H110: 2022-04-01 | I110: 2022-04-30 | J110: 公司-電視-進獎台折(3台1%,7台2%,10台3%)(4K季級不季獎)-04~04 | K110: DCS_TT | L110: DCS_TT | M110: TW | N110: DCS_TT | O110: % | P110: 進獎台折(3台1%,7台2%,10台3%)(4K季級不季獎) | R110: 86QNED99SPB.ATT | T110: 0
A111: DCS_TT | B111: DCS_TT | C111: TT-NTSI-20220323-0002 | D111: HETV20220322-TV-Dealer-Qty SIA SpecificModel-202204 | E111: 2022-04-01 | F111: 2022-04-30 | G111: NTSI | H111: 2022-04-01 | I111: 2022-04-30 | J111: 公司-電視-進獎台折(3台1%,7台2%,10台3%)(4K季級不季獎)-04~04 | K111: DCS_TT | L111: DCS_TT | M111: TW | N111: DCS_TT | O111: % | P111: 進獎台折(3台1%,7台2%,10台3%)(4K季級不季獎) | R111: 86NANO91SPA.ATT | T111: 0
A112: DCS_TT | B112: DCS_TT | C112: TT-NTSI-20220323-0002 | D112: HETV20220322-TV-Dealer-Qty SIA SpecificModel-202204 | E112: 2022-04-01 | F112: 2022-04-30 | G112: NTSI | H112: 2022-04-01 | I112: 2022-04-30 | J112: 公司-電視-進獎台折(3台1%,7台2%,10台3%)(4K季級不季獎)-04~04 | K112: DCS_TT | L112: DCS_TT | M112: TW | N112: DCS_TT | O112: % | P112: 進獎台折(3台1%,7台2%,10台3%)(4K季級不季獎) | R112: 55UP7750PSB.ATT | T112: 0
A113: DCS_TT | B113: DCS_TT | C113: TT-NTSI-20220323-0002 | D113: HETV20220322-TV-Dealer-Qty SIA SpecificModel-202204 | E113: 2022-04-01 | F113: 2022-04-30 | G113: NTSI | H113: 2022-04-01 | I113: 2022-04-30 | J113: 公司-電視-進獎台折(3台1%,7台2%,10台3%)(4K季級不季獎)-04~04 | K113: DCS_TT | L113: DCS_TT | M113: TW | N113: DCS_TT | O113: % | P113: 進獎台折(3台1%,7台2%,10台3%)(4K季級不季獎) | R113: OLED83C1PSA.ATT | T113: 0
A114: DCS_TT | B114: DCS_TT | C114: TT-NTSI-20220323-0002 | D114: HETV20220322-TV-Dealer-Qty SIA SpecificModel-202204 | E114: 2022-04-01 | F114: 2022-04-30 | G114: NTSI | H114: 2022-04-01 | I114: 2022-04-30 | J114: 公司-電視-進獎台折(3台1%,7台2%,10台3%)(4K季級不季獎)-04~04 | K114: DCS_TT | L114: DCS_TT | M114: TW | N114: DCS_TT | O114: % | P114: 進獎台折(3台1%,7台2%,10台3%)(4K季級不季獎) | R114: 65UP8050PSB.ATT | T114: 0
A115: DCS_TT | B115: DCS_TT | C115: TT-NTSI-20220323-0002 | D115: HETV20220322-TV-Dealer-Qty SIA SpecificModel-202204 | E115: 2022-04-01 | F115: 2022-04-30 | G115: NTSI | H115: 2022-04-01 | I115: 2022-04-30 | J115: 公司-電視-進獎台折(3台1%,7台2%,10台3%)(4K季級不季獎)-04~04 | K115: DCS_TT | L115: DCS_TT | M115: TW | N115: DCS_TT | O115: % | P115: 進獎台折(3台1%,7台2%,10台3%)(4K季級不季獎) | R115: OLED77G1PSA.ATT | T115: 0
A116: DCS_TT | B116: DCS_TT | C116: TT-NTSI-20220323-0002 | D116: HETV20220322-TV-Dealer-Qty SIA SpecificModel-202204 | E116: 2022-04-01 | F116: 2022-04-30 | G116: NTSI | H116: 2022-04-01 | I116: 2022-04-30 | J116: 公司-電視-進獎台折(3台1%,7台2%,10台3%)(4K季級不季獎)-04~04 | K116: DCS_TT | L116: DCS_TT | M116: TW | N116: DCS_TT | O116: % | P116: 進獎台折(3台1%,7台2%,10台3%)(4K季級不季獎) | R116: OLED55G1PSA.ATT | T116: 0
A117: DCS_TT | B117: DCS_TT | C117: TT-NTSI-20220323-0002 | D117: HETV20220322-TV-Dealer-Qty SIA SpecificModel-202204 | E117: 2022-04-01 | F117: 2022-04-30 | G117: NTSI | H117: 2022-04-01 | I117: 2022-04-30 | J117: 公司-電視-進獎台折(3台1%,7台2%,10台3%)(4K季級不季獎)-04~04 | K117: DCS_TT | L117: DCS_TT | M117: TW | N117: DCS_TT | O117: % | P117: 進獎台折(3台1%,7台2%,10台3%)(4K季級不季獎) | R117: OLED65C1PSB.ATT | T117: 0
A118: DCS_TT | B118: DCS_TT | C118: TT-NTSI-20220323-0002 | D118: HETV20220322-TV-Dealer-Qty SIA SpecificModel-202204 | E118: 2022-04-01 | F118: 2022-04-30 | G118: NTSI | H118: 2022-04-01 | I118: 2022-04-30 | J118: 公司-電視-進獎台折(3台1%,7台2%,10台3%)(4K季級不季獎)-04~04 | K118: DCS_TT | L118: DCS_TT | M118: TW | N118: DCS_TT | O118: % | P118: 進獎台折(3台1%,7台2%,10台3%)(4K季級不季獎) | R118: 75NANO91SPA.ATT | T118: 0
A119: DCS_TT | B119: DCS_TT | C119: TT-NTSI-20220323-0002 | D119: HETV20220322-TV-Dealer-Qty SIA SpecificModel-202204 | E119: 2022-04-01 | F119: 2022-04-30 | G119: NTSI | H119: 2022-04-01 | I119: 2022-04-30 | J119: 公司-電視-進獎台折(3台1%,7台2%,10台3%)(4K季級不季獎)-04~04 | K119: DCS_TT | L119: DCS_TT | M119: TW | N119: DCS_TT | O119: % | P119: 進獎台折(3台1%,7台2%,10台3%)(4K季級不季獎) | R119: 86UP8050PSB.ATT | T119: 0
A120: DCS_TT | B120: DCS_TT | C120: TT-NTSI-20220323-0002 | D120: HETV20220322-TV-Dealer-Qty SIA SpecificModel-202204 | E120: 2022-04-01 | F120: 2022-04-30 | G120: NTSI | H120: 2022-04-01 | I120: 2022-04-30 | J120: 公司-電視-進獎台折(3台1%,7台2%,10台3%)(4K季級不季獎)-04~04 | K120: DCS_TT | L120: DCS_TT | M120: TW | N120: DCS_TT | O120: % | P120: 進獎台折(3台1%,7台2%,10台3%)(4K季級不季獎) | R120: 65UP7750PSB.ATT | T120: 0
A121: DCS_TT | B121: DCS_TT | C121: TT-NTSI-20220323-0002 | D121: HETV20220322-TV-Dealer-Qty SIA SpecificModel-202204 | E121: 2022-04-01 | F121: 2022-04-30 | G121: NTSI | H121: 2022-04-01 | I121: 2022-04-30 | J121: 公司-電視-進獎台折(3台1%,7台2%,10台3%)(4K季級不季獎)-04~04 | K121: DCS_TT | L121: DCS_TT | M121: TW | N121: DCS_TT | O121: % | P121: 進獎台折(3台1%,7台2%,10台3%)(4K季級不季獎) | R121: 55UP8050PSB.ATT | T121: 0
A122: DLC_TT | B122: DLC_TT | C122: TT-NTSI-20220323-0002 | D122: HETV20220322-TV-Dealer-Qty SIA SpecificModel-202204 | E122: 2022-04-01 | F122: 2022-04-30 | G122: NTSI | H122: 2022-04-01 | I122: 2022-04-30 | J122: 公司-電視-進獎台折(3台1%,7台2%,10台3%)(4K季級不季獎)-04~04 | K122: DLC_TT | L122: DLC_TT | M122: TW | N122: DLC_TT | O122: % | P122: 進獎台折(3台1%,7台2%,10台3%)(4K季級不季獎) | R122: OLED48C1PSB.ATT | T122: 0
A123: DLC_TT | B123: DLC_TT | C123: TT-NTSI-20220323-0002 | D123: HETV20220322-TV-Dealer-Qty SIA SpecificModel-202204 | E123: 2022-04-01 | F123: 2022-04-30 | G123: NTSI | H123: 2022-04-01 | I123: 2022-04-30 | J123: 公司-電視-進獎台折(3台1%,7台2%,10台3%)(4K季級不季獎)-04~04 | K123: DLC_TT | L123: DLC_TT | M123: TW | N123: DLC_TT | O123: % | P123: 進獎台折(3台1%,7台2%,10台3%)(4K季級不季獎) | R123: 65NANO91SPA.ATT | T123: 0
A124: DLC_TT | B124: DLC_TT | C124: TT-NTSI-20220323-0002 | D124: HETV20220322-TV-Dealer-Qty SIA SpecificModel-202204 | E124: 2022-04-01 | F124: 2022-04-30 | G124: NTSI | H124: 2022-04-01 | I124: 2022-04-30 | J124: 公司-電視-進獎台折(3台1%,7台2%,10台3%)(4K季級不季獎)-04~04 | K124: DLC_TT | L124: DLC_TT | M124: TW | N124: DLC_TT | O124: % | P124: 進獎台折(3台1%,7台2%,10台3%)(4K季級不季獎) | R124: 55NANO91SPA.ATT | T124: 0
A125: DLC_TT | B125: DLC_TT | C125: TT-NTSI-20220323-0002 | D125: HETV20220322-TV-Dealer-Qty SIA SpecificModel-202204 | E125: 2022-04-01 | F125: 2022-04-30 | G125: NTSI | H125: 2022-04-01 | I125: 2022-04-30 | J125: 公司-電視-進獎台折(3台1%,7台2%,10台3%)(4K季級不季獎)-04~04 | K125: DLC_TT | L125: DLC_TT | M125: TW | N125: DLC_TT | O125: % | P125: 進獎台折(3台1%,7台2%,10台3%)(4K季級不季獎) | R125: 65NANO86SPA.ATT | T125: 0
A126: DLC_TT | B126: DLC_TT | C126: TT-NTSI-20220323-0002 | D126: HETV20220322-TV-Dealer-Qty SIA SpecificModel-202204 | E126: 2022-04-01 | F126: 2022-04-30 | G126: NTSI | H126: 2022-04-01 | I126: 2022-04-30 | J126: 公司-電視-進獎台折(3台1%,7台2%,10台3%)(4K季級不季獎)-04~04 | K126: DLC_TT | L126: DLC_TT | M126: TW | N126: DLC_TT | O126: % | P126: 進獎台折(3台1%,7台2%,10台3%)(4K季級不季獎) | R126: 55NANO86SPA.ATT | T126: 0
A127: DLC_TT | B127: DLC_TT | C127: TT-NTSI-20220323-0002 | D127: HETV20220322-TV-Dealer-Qty SIA SpecificModel-202204 | E127: 2022-04-01 | F127: 2022-04-30 | G127: NTSI | H127: 2022-04-01 | I127: 2022-04-30 | J127: 公司-電視-進獎台折(3台1%,7台2%,10台3%)(4K季級不季獎)-04~04 | K127: DLC_TT | L127: DLC_TT | M127: TW | N127: DLC_TT | O127: % | P127: 進獎台折(3台1%,7台2%,10台3%)(4K季級不季獎) | R127: 55NANO76SPA.ATT | T127: 0
A128: =IFERROR(VLOOKUP(N128,多CODE,2,0),IF(RIGHT($B128,1)="H",LEFT($B128,11)&"B",IFERROR(VLOOKUP($B128,SHIP,3,0),$B128))) -> DLC_TT | B128: DLC_TT | C128: TT-NTSI-20220323-0002 | D128: HETV20220322-TV-Dealer-Qty SIA SpecificModel-202204 | E128: 2022-04-01 | F128: 2022-04-30 | G128: =MID(C128,4,4) -> NTSI | H128: =IF(OR($G128="NTSI",$G128="TTSI"),$E128,LEFT($E128,4)&"/"&MID($E128,5,2)&"/"&RIGHT($E128,2)) -> 2022-04-01 | I128: =IF(OR($G128="NTSI",$G128="TTSI"),$F128,LEFT($F128,4)&"/"&MID($F128,5,2)&"/"&RIGHT($F128,2)) -> 2022-04-30 | J128: 公司-電視-進獎台折(3台1%,7台2%,10台3%)(4K季級不季獎)-04~04 | K128: DLC_TT | L128: DLC_TT | M128: TW | N128: DLC_TT | O128: % | P128: 進獎台折(3台1%,7台2%,10台3%)(4K季級不季獎) | R128: OLED65G1PSA.ATT | T128: 0
A129: DLC_TT | B129: DLC_TT | C129: TT-NTSI-20220323-0002 | D129: HETV20220322-TV-Dealer-Qty SIA SpecificModel-202204 | E129: 2022-04-01 | F129: 2022-04-30 | G129: NTSI | H129: 2022-04-01 | I129: 2022-04-30 | J129: 公司-電視-進獎台折(3台1%,7台2%,10台3%)(4K季級不季獎)-04~04 | K129: DLC_TT | L129: DLC_TT | M129: TW | N129: DLC_TT | O129: % | P129: 進獎台折(3台1%,7台2%,10台3%)(4K季級不季獎) | R129: OLED55C1PSB.ATT | T129: 0
A130: DLC_TT | B130: DLC_TT | C130: TT-NTSI-20220323-0002 | D130: HETV20220322-TV-Dealer-Qty SIA SpecificModel-202204 | E130: 2022-04-01 | F130: 2022-04-30 | G130: NTSI | H130: 2022-04-01 | I130: 2022-04-30 | J130: 公司-電視-進獎台折(3台1%,7台2%,10台3%)(4K季級不季獎)-04~04 | K130: DLC_TT | L130: DLC_TT | M130: TW | N130: DLC_TT | O130: % | P130: 進獎台折(3台1%,7台2%,10台3%)(4K季級不季獎) | R130: 75QNED96SPA.ATT | T130: 0
A131: DLC_TT | B131: DLC_TT | C131: TT-NTSI-20220323-0002 | D131: HETV20220322-TV-Dealer-Qty SIA SpecificModel-202204 | E131: 2022-04-01 | F131: 2022-04-30 | G131: NTSI | H131: 2022-04-01 | I131: 2022-04-30 | J131: 公司-電視-進獎台折(3台1%,7台2%,10台3%)(4K季級不季獎)-04~04 | K131: DLC_TT | L131: DLC_TT | M131: TW | N131: DLC_TT | O131: % | P131: 進獎台折(3台1%,7台2%,10台3%)(4K季級不季獎) | R131: 65QNED91SPA.ATT | T131: 0
A132: DLC_TT | B132: DLC_TT | C132: TT-NTSI-20220323-0002 | D132: HETV20220322-TV-Dealer-Qty SIA SpecificModel-202204 | E132: 2022-04-01 | F132: 2022-04-30 | G132: NTSI | H132: 2022-04-01 | I132: 2022-04-30 | J132: 公司-電視-進獎台折(3台1%,7台2%,10台3%)(4K季級不季獎)-04~04 | K132: DLC_TT | L132: DLC_TT | M132: TW | N132: DLC_TT | O132: % | P132: 進獎台折(3台1%,7台2%,10台3%)(4K季級不季獎) | R132: 75NANO86SPA.ATT | T132: 0
A133: DLC_TT | B133: DLC_TT | C133: TT-NTSI-20220323-0002 | D133: HETV20220322-TV-Dealer-Qty SIA SpecificModel-202204 | E133: 2022-04-01 | F133: 2022-04-30 | G133: NTSI | H133: 2022-04-01 | I133: 2022-04-30 | J133: 公司-電視-進獎台折(3台1%,7台2%,10台3%)(4K季級不季獎)-04~04 | K133: DLC_TT | L133: DLC_TT | M133: TW | N133: DLC_TT | O133: % | P133: 進獎台折(3台1%,7台2%,10台3%)(4K季級不季獎) | R133: 65NANO76SPA.ATT | T133: 0
A134: DLC_TT | B134: DLC_TT | C134: TT-NTSI-20220323-0002 | D134: HETV20220322-TV-Dealer-Qty SIA SpecificModel-202204 | E134: 2022-04-01 | F134: 2022-04-30 | G134: NTSI | H134: 2022-04-01 | I134: 2022-04-30 | J134: 公司-電視-進獎台折(3台1%,7台2%,10台3%)(4K季級不季獎)-04~04 | K134: DLC_TT | L134: DLC_TT | M134: TW | N134: DLC_TT | O134: % | P134: 進獎台折(3台1%,7台2%,10台3%)(4K季級不季獎) | R134: OLED88Z1PSA.ATT | T134: 0
A135: DLC_TT | B135: DLC_TT | C135: TT-NTSI-20220323-0002 | D135: HETV20220322-TV-Dealer-Qty SIA SpecificModel-202204 | E135: 2022-04-01 | F135: 2022-04-30 | G135: NTSI | H135: 2022-04-01 | I135: 2022-04-30 | J135: 公司-電視-進獎台折(3台1%,7台2%,10台3%)(4K季級不季獎)-04~04 | K135: DLC_TT | L135: DLC_TT | M135: TW | N135: DLC_TT | O135: % | P135: 進獎台折(3台1%,7台2%,10台3%)(4K季級不季獎) | R135: OLED77C1PSB.ATT | T135: 0
A136: DLC_TT | B136: DLC_TT | C136: TT-NTSI-20220323-0002 | D136: HETV20220322-TV-Dealer-Qty SIA SpecificModel-202204 | E136: 2022-04-01 | F136: 2022-04-30 | G136: NTSI | H136: 2022-04-01 | I136: 2022-04-30 | J136: 公司-電視-進獎台折(3台1%,7台2%,10台3%)(4K季級不季獎)-04~04 | K136: DLC_TT | L136: DLC_TT | M136: TW | N136: DLC_TT | O136: % | P136: 進獎台折(3台1%,7台2%,10台3%)(4K季級不季獎) | R136: 86QNED99SPB.ATT | T136: 0
A137: DLC_TT | B137: DLC_TT | C137: TT-NTSI-20220323-0002 | D137: HETV20220322-TV-Dealer-Qty SIA SpecificModel-202204 | E137: 2022-04-01 | F137: 2022-04-30 | G137: NTSI | H137: 2022-04-01 | I137: 2022-04-30 | J137: 公司-電視-進獎台折(3台1%,7台2%,10台3%)(4K季級不季獎)-04~04 | K137: DLC_TT | L137: DLC_TT | M137: TW | N137: DLC_TT | O137: % | P137: 進獎台折(3台1%,7台2%,10台3%)(4K季級不季獎) | R137: 86NANO91SPA.ATT | T137: 0
A138: DLC_TT | B138: DLC_TT | C138: TT-NTSI-20220323-0002 | D138: HETV20220322-TV-Dealer-Qty SIA SpecificModel-202204 | E138: 2022-04-01 | F138: 2022-04-30 | G138: NTSI | H138: 2022-04-01 | I138: 2022-04-30 | J138: 公司-電視-進獎台折(3台1%,7台2%,10台3%)(4K季級不季獎)-04~04 | K138: DLC_TT | L138: DLC_TT | M138: TW | N138: DLC_TT | O138: % | P138: 進獎台折(3台1%,7台2%,10台3%)(4K季級不季獎) | R138: 55UP7750PSB.ATT | T138: 0
A139: DLC_TT | B139: DLC_TT | C139: TT-NTSI-20220323-0002 | D139: HETV20220322-TV-Dealer-Qty SIA SpecificModel-202204 | E139: 2022-04-01 | F139: 2022-04-30 | G139: NTSI | H139: 2022-04-01 | I139: 2022-04-30 | J139: 公司-電視-進獎台折(3台1%,7台2%,10台3%)(4K季級不季獎)-04~04 | K139: DLC_TT | L139: DLC_TT | M139: TW | N139: DLC_TT | O139: % | P139: 進獎台折(3台1%,7台2%,10台3%)(4K季級不季獎) | R139: OLED83C1PSA.ATT | T139: 0
A140: DLC_TT | B140: DLC_TT | C140: TT-NTSI-20220323-0002 | D140: HETV20220322-TV-Dealer-Qty SIA SpecificModel-202204 | E140: 2022-04-01 | F140: 2022-04-30 | G140: NTSI | H140: 2022-04-01 | I140: 2022-04-30 | J140: 公司-電視-進獎台折(3台1%,7台2%,10台3%)(4K季級不季獎)-04~04 | K140: DLC_TT | L140: DLC_TT | M140: TW | N140: DLC_TT | O140: % | P140: 進獎台折(3台1%,7台2%,10台3%)(4K季級不季獎) | R140: 65UP8050PSB.ATT | T140: 0
A141: DLC_TT | B141: DLC_TT | C141: TT-NTSI-20220323-0002 | D141: HETV20220322-TV-Dealer-Qty SIA SpecificModel-202204 | E141: 2022-04-01 | F141: 2022-04-30 | G141: NTSI | H141: 2022-04-01 | I141: 2022-04-30 | J141: 公司-電視-進獎台折(3台1%,7台2%,10台3%)(4K季級不季獎)-04~04 | K141: DLC_TT | L141: DLC_TT | M141: TW | N141: DLC_TT | O141: % | P141: 進獎台折(3台1%,7台2%,10台3%)(4K季級不季獎) | R141: OLED77G1PSA.ATT | T141: 0
A142: DLC_TT | B142: DLC_TT | C142: TT-NTSI-20220323-0002 | D142: HETV20220322-TV-Dealer-Qty SIA SpecificModel-202204 | E142: 2022-04-01 | F142: 2022-04-30 | G142: NTSI | H142: 2022-04-01 | I142: 2022-04-30 | J142: 公司-電視-進獎台折(3台1%,7台2%,10台3%)(4K季級不季獎)-04~04 | K142: DLC_TT | L142: DLC_TT | M142: TW | N142: DLC_TT | O142: % | P142: 進獎台折(3台1%,7台2%,10台3%)(4K季級不季獎) | R142: OLED55G1PSA.ATT | T142: 0
A143: DLC_TT | B143: DLC_TT | C143: TT-NTSI-20220323-0002 | D143: HETV20220322-TV-Dealer-Qty SIA SpecificModel-202204 | E143: 2022-04-01 | F143: 2022-04-30 | G143: NTSI | H143: 2022-04-01 | I143: 2022-04-30 | J143: 公司-電視-進獎台折(3台1%,7台2%,10台3%)(4K季級不季獎)-04~04 | K143: DLC_TT | L143: DLC_TT | M143: TW | N143: DLC_TT | O143: % | P143: 進獎台折(3台1%,7台2%,10台3%)(4K季級不季獎) | R143: OLED65C1PSB.ATT | T143: 0
A144: DLC_TT | B144: DLC_TT | C144: TT-NTSI-20220323-0002 | D144: HETV20220322-TV-Dealer-Qty SIA SpecificModel-202204 | E144: 2022-04-01 | F144: 2022-04-30 | G144: NTSI | H144: 2022-04-01 | I144: 2022-04-30 | J144: 公司-電視-進獎台折(3台1%,7台2%,10台3%)(4K季級不季獎)-04~04 | K144: DLC_TT | L144: DLC_TT | M144: TW | N144: DLC_TT | O144: % | P144: 進獎台折(3台1%,7台2%,10台3%)(4K季級不季獎) | R144: 75NANO91SPA.ATT | T144: 0
A145: DLC_TT | B145: DLC_TT | C145: TT-NTSI-20220323-0002 | D145: HETV20220322-TV-Dealer-Qty SIA SpecificModel-202204 | E145: 2022-04-01 | F145: 2022-04-30 | G145: NTSI | H145: 2022-04-01 | I145: 2022-04-30 | J145: 公司-電視-進獎台折(3台1%,7台2%,10台3%)(4K季級不季獎)-04~04 | K145: DLC_TT | L145: DLC_TT | M145: TW | N145: DLC_TT | O145: % | P145: 進獎台折(3台1%,7台2%,10台3%)(4K季級不季獎) | R145: 86UP8050PSB.ATT | T145: 0
A146: DLC_TT | B146: DLC_TT | C146: TT-NTSI-20220323-0002 | D146: HETV20220322-TV-Dealer-Qty SIA SpecificModel-202204 | E146: 2022-04-01 | F146: 2022-04-30 | G146: NTSI | H146: 2022-04-01 | I146: 2022-04-30 | J146: 公司-電視-進獎台折(3台1%,7台2%,10台3%)(4K季級不季獎)-04~04 | K146: DLC_TT | L146: DLC_TT | M146: TW | N146: DLC_TT | O146: % | P146: 進獎台折(3台1%,7台2%,10台3%)(4K季級不季獎) | R146: 65UP7750PSB.ATT | T146: 0
A147: DLC_TT | B147: DLC_TT | C147: TT-NTSI-20220323-0002 | D147: HETV20220322-TV-Dealer-Qty SIA SpecificModel-202204 | E147: 2022-04-01 | F147: 2022-04-30 | G147: NTSI | H147: 2022-04-01 | I147: 2022-04-30 | J147: 公司-電視-進獎台折(3台1%,7台2%,10台3%)(4K季級不季獎)-04~04 | K147: DLC_TT | L147: DLC_TT | M147: TW | N147: DLC_TT | O147: % | P147: 進獎台折(3台1%,7台2%,10台3%)(4K季級不季獎) | R147: 55UP8050PSB.ATT | T147: 0
A148: TW005240001B | B148: TW005240001B | C148: TT-NTSI-20220324-0001 | D148: DWB2203H14-TV-TW005240-Specific Model Sellin Target Rebate-2022Q2 | E148: 2022-04-01 | F148: 2022-06-30 | G148: NTSI | H148: 2022-04-01 | I148: 2022-06-30 | J148: 公司-電視-OLED及75吋以上NANO季目標達成進貨獎勵3%(進貨目標未稅45萬)-04~06 | K148: TW005240001B | L148: 永順錩電器 | M148: TW | N148: 桃竹營銷處 | O148: % | P148: OLED及75吋以上NANO季目標達成進貨獎勵3%(進貨目標未稅45萬) | R148: 75NANO86SPA.ATT | T148: 0
A149: TW005240001B | B149: TW005240001B | C149: TT-NTSI-20220324-0001 | D149: DWB2203H14-TV-TW005240-Specific Model Sellin Target Rebate-2022Q2 | E149: 2022-04-01 | F149: 2022-06-30 | G149: NTSI | H149: 2022-04-01 | I149: 2022-06-30 | J149: 公司-電視-OLED及75吋以上NANO季目標達成進貨獎勵3%(進貨目標未稅45萬)-04~06 | K149: TW005240001B | L149: 永順錩電器 | M149: TW | N149: 桃竹營銷處 | O149: % | P149: OLED及75吋以上NANO季目標達成進貨獎勵3%(進貨目標未稅45萬) | R149: 86NANO91SPA.ATT | T149: 0
A150: TW005240001B | B150: TW005240001B | C150: TT-NTSI-20220324-0001 | D150: DWB2203H14-TV-TW005240-Specific Model Sellin Target Rebate-2022Q2 | E150: 2022-04-01 | F150: 2022-06-30 | G150: NTSI | H150: 2022-04-01 | I150: 2022-06-30 | J150: 公司-電視-OLED及75吋以上NANO季目標達成進貨獎勵3%(進貨目標未稅45萬)-04~06 | K150: TW005240001B | L150: 永順錩電器 | M150: TW | N150: 桃竹營銷處 | O150: % | P150: OLED及75吋以上NANO季目標達成進貨獎勵3%(進貨目標未稅45萬) | R150: 75NANO91SPA.ATT | T150: 0
A151: TW005240001B | B151: TW005240001B | C151: TT-NTSI-20220324-0001 | D151: DWB2203H14-TV-TW005240-Specific Model Sellin Target Rebate-2022Q2 | E151: 2022-04-01 | F151: 2022-06-30 | G151: NTSI | H151: 2022-04-01 | I151: 2022-06-30 | J151: 公司-電視-OLED及75吋以上NANO季目標達成進貨獎勵3%(進貨目標未稅45萬)-04~06 | K151: TW005240001B | L151: 永順錩電器 | M151: TW | N151: 桃竹營銷處 | O151: % | P151: OLED及75吋以上NANO季目標達成進貨獎勵3%(進貨目標未稅45萬) | R151: TVLO | T151: 0
A152: TW005141001B | B152: TW005141001B | C152: TT-NTSI-20220325-0009 | D152: IT22035141I01-MNT-TW005141-InTarget-202204 | E152: 2022-04-01 | F152: 2022-04-30 | G152: NTSI | H152: 2022-04-01 | I152: 2022-04-30 | J152: 個人-螢幕-進貨達未稅目標1,373,654獎勵0.45%-04~04 | K152: TW005141001B | L152: 富基電通 | M152: TW | N152: IT | O152: % | P152: 進貨達未稅目標1,373,654獎勵0.45% | R152: 螢幕 | T152: 0
A153: TW005141001B | B153: TW005141001B | C153: TT-NTSI-20220325-0010 | D153: IT22035141I01-PC-TW005141-InTarget-202204 | E153: 2022-04-01 | F153: 2022-04-30 | G153: NTSI | H153: 2022-04-01 | I153: 2022-04-30 | J153: 個人-筆電-進貨達未稅目標6,837,178獎勵1.4%-04~04 | K153: TW005141001B | L153: 富基電通 | M153: TW | N153: IT | O153: % | P153: 進貨達未稅目標6,837,178獎勵1.4% | R153: 筆電 | T153: 0
A154: TW003130001B | B154: TW003130001B | C154: TT-NTSI-20220325-0011 | D154: IT2203313001-MNT-TW003130-InTarget1.1M-202204 | E154: 2022-04-01 | F154: 2022-04-30 | G154: NTSI | H154: 2022-04-01 | I154: 2022-04-30 | J154: 個人-螢幕-進貨達未稅目標1100萬獎勵0.45%04~04 | K154: TW003130001B | L154: 展碁國際 | M154: TW | N154: IT | O154: % | P154: 進貨達未稅目標1100萬獎勵0.45%04~04 | R154: 螢幕 | T154: 0
A155: TW003130001B | B155: TW003130001B | C155: TT-NTSI-20220325-0012 | D155: IT2203313001-PC-TW003130-InTarget4.5M-202204 | E155: 2022-04-01 | F155: 2022-04-30 | G155: NTSI | H155: 2022-04-01 | I155: 2022-04-30 | J155: 個人-筆電-進貨達未稅目標450萬獎勵1.4%04~04 | K155: TW003130001B | L155: 展碁國際 | M155: TW | N155: IT | O155: % | P155: 進貨達未稅目標450萬獎勵1.4%04~04 | R155: 筆電 | T155: 0
A156: TW005084001B | B156: TW005084001B | C156: TT-NTSI-20220325-0028 | D156: DNB2203L0007-ALL-TW005084-Exhibition(InTarget4M)-202204 | E156: 2022-04-06 | F156: 2022-04-29 | G156: NTSI | H156: 2022-04-06 | I156: 2022-04-29 | J156: 公司-全產品-LG專售店開幕活動(切結未稅400萬,達8成給予獎勵,上限未稅10萬)-04.06~04.29 | K156: TW005084001B | L156: 東隆電器 | M156: TW | N156: 嘉南營銷處 | O156: % | P156: LG專售店開幕活動(切結未稅400萬,達8成給予獎勵,上限未稅10萬) | R156: 全產品 | T156: 0
A157: TW002400001B | B157: TW002400001B | C157: TT-NTSI-20220325-0029 | D157: TPB2203D015-TV-TW002400-2Q Sell in Target-202204-202206 | E157: 2022-04-01 | F157: 2022-06-30 | G157: NTSI | H157: 2022-04-01 | I157: 2022-06-30 | J157: 公司-電視-2Q進貨1.5M依機種分獎勵率(NANO*5%,OLED*7%)高階占比達35%以上(OLED/奈米/大尺寸 75" 86" TV)不含核心店新機陳列-04~06 | K157: TW002400001B | L157: 金亞實業 | M157: TW | N157: 台北營銷處 | O157: % | P157: 2Q進貨1.5M依機種分獎勵率(NANO*5%,OLED*7%)高階占比達35%以上(OLED/奈米/大尺寸 75" 86" TV)不含核心店新機陳列 | R157: 電視 | T157: 0
A158: TW002652001B | B158: TW002652001B | C158: TT-NTSI-20220325-0030 | D158: TPB2203D015-TV-TW002652-2Q Sell in Target-202204-202206 | E158: 2022-04-01 | F158: 2022-06-30 | G158: NTSI | H158: 2022-04-01 | I158: 2022-06-30 | J158: 公司-電視-2Q進貨1.5M依機種分獎勵率(NANO*5%,OLED*7%)高階占比達35%以上(OLED/奈米/大尺寸 75" 86" TV)不含核心店新機陳列-04~06 | K158: TW002652001B | L158: 第二電器音響 | M158: TW | N158: 台北營銷處 | O158: % | P158: 2Q進貨1.5M依機種分獎勵率(NANO*5%,OLED*7%)高階占比達35%以上(OLED/奈米/大尺寸 75" 86" TV)不含核心店新機陳列 | R158: 電視 | T158: 0
A159: TW002381001B | B159: TW002381001B | C159: TT-NTSI-20220325-0031 | D159: TPB2203D015-TV-TW002381-2Q Sell in Target-202204-202206 | E159: 2022-04-01 | F159: 2022-06-30 | G159: NTSI | H159: 2022-04-01 | I159: 2022-06-30 | J159: 公司-電視-2Q進貨1.5M依機種分獎勵率(NANO*5%,OLED*7%)高階占比達35%以上(OLED/奈米/大尺寸 75" 86" TV)不含核心店新機陳列-04~06 | K159: TW002381001B | L159: 萬豐視聽 | M159: TW | N159: 台北營銷處 | O159: % | P159: 2Q進貨1.5M依機種分獎勵率(NANO*5%,OLED*7%)高階占比達35%以上(OLED/奈米/大尺寸 75" 86" TV)不含核心店新機陳列 | R159: 電視 | T159: 0
A160: TW002456001B | B160: TW002456001B | C160: TT-NTSI-20220328-0029 | D160: MMCSN2203A038-HC-TW002456-InTarget2M-202204 | E160: 2022-04-01 | F160: 2022-04-30 | G160: NTSI | H160: 2022-04-01 | I160: 2022-04-30 | J160: 公司-清淨機-進貨達未稅200萬獎勵3%-04~04 | K160: TW002456001B | L160: 燦坤 | M160: TW | N160: MMCS-燦坤 | O160: % | P160: 進貨達未稅200萬獎勵3% | R160: HCWCASAC | T160: 0
A161: TW002456001B | B161: TW002456001B | C161: TT-NTSI-20220328-0029 | D161: MMCSN2203A038-HC-TW002456-InTarget2M-202204 | E161: 2022-04-01 | F161: 2022-04-30 | G161: NTSI | H161: 2022-04-01 | I161: 2022-04-30 | J161: 公司-清淨機-進貨達未稅200萬獎勵3%-04~04 | K161: TW002456001B | L161: 燦坤 | M161: TW | N161: MMCS-燦坤 | O161: % | P161: 進貨達未稅200萬獎勵3% | R161: HCWCASCA | T161: 0
A162: TW002456001B | B162: TW002456001B | C162: TT-NTSI-20220328-0029 | D162: MMCSN2203A038-HC-TW002456-InTarget2M-202204 | E162: 2022-04-01 | F162: 2022-04-30 | G162: NTSI | H162: 2022-04-01 | I162: 2022-04-30 | J162: 公司-清淨機-進貨達未稅200萬獎勵3%-04~04 | K162: TW002456001B | L162: 燦坤 | M162: TW | N162: MMCS-燦坤 | O162: % | P162: 進貨達未稅200萬獎勵3% | R162: HCWCASWA | T162: 0
A163: TW002456001B | B163: TW002456001B | C163: TT-NTSI-20220328-0029 | D163: MMCSN2203A038-HC-TW002456-InTarget2M-202204 | E163: 2022-04-01 | F163: 2022-04-30 | G163: NTSI | H163: 2022-04-01 | I163: 2022-04-30 | J163: 公司-清淨機-進貨達未稅200萬獎勵3%-04~04 | K163: TW002456001B | L163: 燦坤 | M163: TW | N163: MMCS-燦坤 | O163: % | P163: 進貨達未稅200萬獎勵3% | R163: HCWCXXCP | T163: 0
A164: TW002456001B | B164: TW002456001B | C164: TT-NTSI-20220328-0030 | D164: MMCSN2203A038-DH-TW002456-InTarget1M-202204 | E164: 2022-04-01 | F164: 2022-04-30 | G164: NTSI | H164: 2022-04-01 | I164: 2022-04-30 | J164: 公司-除濕機-進貨達未稅100萬獎勵3%-04~04 | K164: TW002456001B | L164: 燦坤 | M164: TW | N164: MMCS-燦坤 | O164: % | P164: 進貨達未稅100萬獎勵3% | R164: HADHDHDJ | T164: 0
A165: TW002456001B | B165: TW002456001B | C165: TT-NTSI-20220328-0031 | D165: MMCSN2203A038-VCC-TW002456-InTarget1.5M-202204 | E165: 2022-04-01 | F165: 2022-04-30 | G165: NTSI | H165: 2022-04-01 | I165: 2022-04-30 | J165: 公司-吸塵器-進貨達未稅150萬獎勵3%-04~04 | K165: TW002456001B | L165: 燦坤 | M165: TW | N165: MMCS-燦坤 | O165: % | P165: 進貨達未稅150萬獎勵3% | R165: 吸塵器 | T165: 0
A166: TW003378001B | B166: TW003378001B | C166: TT-NTSI-20220328-0032 | D166: IT22033378I01-MNT-TW003378-InTarget-202204 | E166: 2022-04-01 | F166: 2022-04-30 | G166: NTSI | H166: 2022-04-01 | I166: 2022-04-30 | J166: 個人-螢幕-進貨達未稅目標$8,019,513獎勵0.45%-04~04 | K166: TW003378001B | L166: 捷元 | M166: TW | N166: IT | O166: % | P166: 進貨達未稅目標$8,019,513獎勵0.45% | R166: 螢幕 | T166: 0
A167: TW006823001B | B167: TW006823001B | C167: TT-NTSI-20220328-0036 | D167: DJB2203Z003-TV-TW006823-Specific Model Target Sell-in Rebate-202204 | E167: 2022-04-01 | F167: 2022-04-30 | G167: NTSI | H167: 2022-04-01 | I167: 2022-04-30 | J167: 公司-電視-特定型號目標達成進貨獎勵(OLED 4%，NANO+QNED 3%，一般4K計入出貨目標不給獎勵)-04~04 | K167: TW006823001B | L167: 米米實業有限公司 | M167: TW | N167: 台中營銷處 | O167: % | P167: 特定型號目標達成進貨獎勵(OLED 4%，NANO+QNED 3%，一般4K計入出貨目標不給獎勵) | R167: 電視 | T167: 0
A168: TW006823001B | B168: TW006823001B | C168: TT-NTSI-20220328-0039 | D168: DJB2203Z004-RF/WM/MWO/Washer-TW006823-Specific Model Target Sell-in Rebate-202204 | E168: 2022-04-01 | F168: 2022-04-30 | G168: NTSI | H168: 2022-04-01 | I168: 2022-04-30 | J168: 公司-冰箱/洗衣機/微波爐/洗碗機-特定型號目標達成進貨獎勵(特定型號3%，其餘1%)-04~04 | K168: TW006823001B | L168: 米米實業有限公司 | M168: TW | N168: 台中營銷處 | O168: % | P168: 特定型號目標達成進貨獎勵(特定型號3%，其餘1%) | R168: 冰箱 | T168: 0
A169: TW006823001B | B169: TW006823001B | C169: TT-NTSI-20220328-0039 | D169: DJB2203Z004-RF/WM/MWO/Washer-TW006823-Specific Model Target Sell-in Rebate-202204 | E169: 2022-04-01 | F169: 2022-04-30 | G169: NTSI | H169: 2022-04-01 | I169: 2022-04-30 | J169: 公司-冰箱/洗衣機/微波爐/洗碗機-特定型號目標達成進貨獎勵(特定型號3%，其餘1%)-04~04 | K169: TW006823001B | L169: 米米實業有限公司 | M169: TW | N169: 台中營銷處 | O169: % | P169: 特定型號目標達成進貨獎勵(特定型號3%，其餘1%) | R169: 洗衣機 | T169: 0
A170: TW006823001B | B170: TW006823001B | C170: TT-NTSI-20220328-0039 | D170: DJB2203Z004-RF/WM/MWO/Washer-TW006823-Specific Model Target Sell-in Rebate-202204 | E170: 2022-04-01 | F170: 2022-04-30 | G170: NTSI | H170: 2022-04-01 | I170: 2022-04-30 | J170: 公司-冰箱/洗衣機/微波爐/洗碗機-特定型號目標達成進貨獎勵(特定型號3%，其餘1%)-04~04 | K170: TW006823001B | L170: 米米實業有限公司 | M170: TW | N170: 台中營銷處 | O170: % | P170: 特定型號目標達成進貨獎勵(特定型號3%，其餘1%) | R170: 微波爐 | T170: 0
A171: TW006823001B | B171: TW006823001B | C171: TT-NTSI-20220328-0039 | D171: DJB2203Z004-RF/WM/MWO/Washer-TW006823-Specific Model Target Sell-in Rebate-202204 | E171: 2022-04-01 | F171: 2022-04-30 | G171: NTSI | H171: 2022-04-01 | I171: 2022-04-30 | J171: 公司-冰箱/洗衣機/微波爐/洗碗機-特定型號目標達成進貨獎勵(特定型號3%，其餘1%)-04~04 | K171: TW006823001B | L171: 米米實業有限公司 | M171: TW | N171: 台中營銷處 | O171: % | P171: 特定型號目標達成進貨獎勵(特定型號3%，其餘1%) | R171: 洗碗機 | T171: 0
A172: TW007140001B | B172: TW007140001B | C172: TT-NTSI-20220328-0040 | D172: DJB2203F0003-ALL-TW007140-Exhibition Target Sell-in Rebate-0422~0509 | E172: 2022-04-22 | F172: 2022-05-09 | G172: NTSI | H172: 2022-04-22 | I172: 2022-05-09 | J172: 公司-全產品-個展目標達成進貨獎勵(切結業績300萬，上限$75,000)-0422~0509 | K172: TW007140001B | L172: 老王科技有限公司 | M172: TW | N172: 台中營銷處 | O172: % | P172: 個展目標達成進貨獎勵(切結業績300萬，上限$75,000) | R172: 全產品 | T172: 0
A173: TW006897001B | B173: TW006897001B | C173: TT-NTSI-20220329-0016 | D173: DWB2203H13-ALL-TW006897-Exhibition(InTarget5.6M)-0401~0430 | E173: 2022-04-01 | F173: 2022-04-30 | G173: NTSI | H173: 2022-04-01 | I173: 2022-04-30 | J173: 公司-全產品-桃園博愛個展暨綠光花園特賣會(切結業績未稅700萬,達8成給予獎勵2.5%,上限未稅17.5萬)-0301~0327 | K173: TW006897001B | L173: 姿芳科技有限公司 | M173: TW | N173: 桃竹營銷處 | O173: % | P173: 桃園博愛個展暨綠光花園特賣會(切結業績未稅700萬,達8成給予獎勵2.5%,上限未稅17.5萬) | R173: 全產品 | T173: 0
A174: TW006207001B | B174: TW006207001B | C174: TT-NTSI-20220329-0036 | D174: HPC2203A014-DH-TW006207-Target Sell-in Rebate-202204 | E174: 2022-04-01 | F174: 2022-04-30 | G174: NTSI | H174: 2022-04-01 | I174: 2022-04-30 | J174: 公司-除濕機-目標達成進貨獎勵(達900萬給予4%進貨獎勵)-04~04 | K174: TW006207001B | L174: 包昇數位文化有限公司 | M174: TW | N174: ONLINE | O174: % | P174: 目標達成進貨獎勵(達900萬給予4%進貨獎勵) | R174: HADHDHDJ | T174: 0
A175: TW006207001B | B175: TW006207001B | C175: TT-NTSI-20220329-0037 | D175: HPC2203A014-HC-TW006207-Target Sell-in Rebate-202204 | E175: 2022-04-01 | F175: 2022-04-30 | G175: NTSI | H175: 2022-04-01 | I175: 2022-04-30 | J175: 公司-清淨機-目標達成進貨獎勵(達500萬給予4%進貨獎勵)-04~04 | K175: TW006207001B | L175: 包昇數位文化有限公司 | M175: TW | N175: ONLINE | O175: % | P175: 目標達成進貨獎勵(達500萬給予4%進貨獎勵) | R175: HCWCASAC | T175: 0
A176: TW006207001B | B176: TW006207001B | C176: TT-NTSI-20220329-0037 | D176: HPC2203A014-HC-TW006207-Target Sell-in Rebate-202204 | E176: 2022-04-01 | F176: 2022-04-30 | G176: NTSI | H176: 2022-04-01 | I176: 2022-04-30 | J176: 公司-清淨機-目標達成進貨獎勵(達500萬給予4%進貨獎勵)-04~04 | K176: TW006207001B | L176: 包昇數位文化有限公司 | M176: TW | N176: ONLINE | O176: % | P176: 目標達成進貨獎勵(達500萬給予4%進貨獎勵) | R176: HCWCASCA | T176: 0
A177: TW006207001B | B177: TW006207001B | C177: TT-NTSI-20220329-0037 | D177: HPC2203A014-HC-TW006207-Target Sell-in Rebate-202204 | E177: 2022-04-01 | F177: 2022-04-30 | G177: NTSI | H177: 2022-04-01 | I177: 2022-04-30 | J177: 公司-清淨機-目標達成進貨獎勵(達500萬給予4%進貨獎勵)-04~04 | K177: TW006207001B | L177: 包昇數位文化有限公司 | M177: TW | N177: ONLINE | O177: % | P177: 目標達成進貨獎勵(達500萬給予4%進貨獎勵) | R177: HCWCASWA | T177: 0
A178: TW002718001B | B178: TW002718001B | C178: TT-NTSI-20220329-0046 | D178: MMCSN2204B0106-DH-TW002718-SaleInTarget-7M-202204 | E178: 2022-04-01 | F178: 2022-04-30 | G178: NTSI | H178: 2022-04-01 | I178: 2022-04-30 | J178: 公司-除濕機-進貨達成獎勵(目標700萬獎勵率3%)-04~04 | K178: TW002718001B | L178: 全國電子 | M178: TW | N178: MMCS-全國 | O178: % | P178: 進貨達成獎勵(目標700萬獎勵率3%) | R178: HADHDHDJ | T178: 0
A179: TW002718001B | B179: TW002718001B | C179: TT-NTSI-20220329-0046 | D179: MMCSN2204B0106-DH-TW002718-SaleInTarget-7M-202204 | E179: 2022-04-01 | F179: 2022-04-30 | G179: NTSI | H179: 2022-04-01 | I179: 2022-04-30 | J179: 公司-除濕機-進貨達成獎勵(目標700萬獎勵率3%)-04~04 | K179: TW002718001B | L179: 全國電子 | M179: TW | N179: MMCS-全國 | O179: % | P179: 進貨達成獎勵(目標700萬獎勵率3%) | R179: HADHDHDP | T179: 0
A180: TW002718001B | B180: TW002718001B | C180: TT-NTSI-20220329-0047 | D180: MMCSN2204B0106-HC-TW002718-SaleInTarget-3M-202204 | E180: 2022-04-01 | F180: 2022-04-30 | G180: NTSI | H180: 2022-04-01 | I180: 2022-04-30 | J180: 公司-清淨機-進貨達成獎勵(目標300萬獎勵率3%)-04~04 | K180: TW002718001B | L180: 全國電子 | M180: TW | N180: MMCS-全國 | O180: % | P180: 進貨達成獎勵(目標300萬獎勵率3%) | R180: HCWCASAC | T180: 0
A181: TW002718001B | B181: TW002718001B | C181: TT-NTSI-20220329-0047 | D181: MMCSN2204B0106-HC-TW002718-SaleInTarget-3M-202204 | E181: 2022-04-01 | F181: 2022-04-30 | G181: NTSI | H181: 2022-04-01 | I181: 2022-04-30 | J181: 公司-清淨機-進貨達成獎勵(目標300萬獎勵率3%)-04~04 | K181: TW002718001B | L181: 全國電子 | M181: TW | N181: MMCS-全國 | O181: % | P181: 進貨達成獎勵(目標300萬獎勵率3%) | R181: HCWCASCA | T181: 0
A182: TW002718001B | B182: TW002718001B | C182: TT-NTSI-20220329-0047 | D182: MMCSN2204B0106-HC-TW002718-SaleInTarget-3M-202204 | E182: 2022-04-01 | F182: 2022-04-30 | G182: NTSI | H182: 2022-04-01 | I182: 2022-04-30 | J182: 公司-清淨機-進貨達成獎勵(目標300萬獎勵率3%)-04~04 | K182: TW002718001B | L182: 全國電子 | M182: TW | N182: MMCS-全國 | O182: % | P182: 進貨達成獎勵(目標300萬獎勵率3%) | R182: HCWCASWA | T182: 0
A183: TW007124001B | B183: TW007124001B | C183: TT-NTSI-20220330-0003 | D183: MMCSN2204T007-DLT-B&Q-Sell in Target Rebate-202204 | E183: 2022-04-01 | F183: 2022-04-30 | G183: NTSI | H183: 2022-04-01 | I183: 2022-04-30 | J183: 公司-清淨除濕機-進貨獎勵2%(目標250萬)-04~04 | K183: TW007124001B | L183: 特力屋 | M183: TW | N183: MMCS-特力屋 | O183: % | P183: 進貨獎勵2%(目標250萬) | R183: 除濕/清淨機 | T183: 0
A184: TW002456001B | B184: TW002456001B | C184: TT-NTSI-20220330-0008 | D184: MMCSN2203A059-AC-TW002456-InTarget7.5M-202204 | E184: 2022-04-01 | F184: 2022-04-30 | G184: NTSI | H184: 2022-04-01 | I184: 2022-04-30 | J184: 公司-冷氣-進貨達未稅750萬獎勵2%-04~04 | K184: TW002456001B | L184: 燦坤 | M184: TW | N184: MMCS-燦坤 | O184: % | P184: 進貨達未稅750萬獎勵2% | R184: 冷氣 | T184: 0
A185: =IFERROR(VLOOKUP(N185,多CODE,2,0),IF(RIGHT($B185,1)="H",LEFT($B185,11)&"B",IFERROR(VLOOKUP($B185,SHIP,3,0),$B185))) -> TW002501001B | B185: TW002501001B | C185: TT-NTSI-20220330-0029 | D185: MMCSN2203G020-DLT-TW002501-Target Sell-in Rebate-202204 | E185: 2022-04-01 | F185: 2022-04-30 | G185: =MID(C185,4,4) -> NTSI | H185: =IF(OR($G185="NTSI",$G185="TTSI"),$E185,LEFT($E185,4)&"/"&MID($E185,5,2)&"/"&RIGHT($E185,2)) -> 2022-04-01 | I185: =IF(OR($G185="NTSI",$G185="TTSI"),$F185,LEFT($F185,4)&"/"&MID($F185,5,2)&"/"&RIGHT($F185,2)) -> 2022-04-30 | J185: 公司-除濕機/清淨機-目標達成進貨獎勵(達200萬給予2%進貨獎勵)-04~04 | K185: TW002501001B | L185: 家福總公司 | M185: TW | N185: MMCS-家福 | O185: % | P185: 目標達成進貨獎勵(達200萬給予2%進貨獎勵) | R185: 除濕/清淨機 | T185: 0
A186: TW002529001B | B186: TW002529001B | C186: TT-NTSI-20220330-0060 | D186: MMCSN2204I023-DLT-TW002529-Target Sellin Rebate-202204 | E186: 2022-04-01 | F186: 2022-04-30 | G186: NTSI | H186: 2022-04-01 | I186: 2022-04-30 | J186: 公司-除濕機/清淨機-目標達成進貨獎勵3%(進貨目標150萬)-04~04 | K186: TW002529001B | L186: 愛買吉安總公司 | M186: TW | N186: MMCS-愛買 | O186: % | P186: 目標達成進貨獎勵3%(進貨目標150萬) | R186: 除濕/清淨機 | T186: 0
A187: TW002718001B | B187: TW002718001B | C187: TT-NTSI-20220330-0061 | D187: MMCSN2203B047-AC-TW002718-SaleInTarget-25M-202204 | E187: 2022-04-01 | F187: 2022-04-30 | G187: NTSI | H187: 2022-04-01 | I187: 2022-04-30 | J187: 公司-冷氣-進貨達成獎勵1.5%(目標2500萬)-04~04 | K187: TW002718001B | L187: 全國電子 | M187: TW | N187: MMCS-全國 | O187: % | P187: 進貨達成獎勵1.5%(目標2500萬) | R187: 冷氣 | T187: 0
A188: TW002718001B | B188: TW002718001B | C188: TT-NTSI-20220330-0062 | D188: MMCSN2204B0105-VCC-TW002718-SaleInTarget-5M-202204 | E188: 2022-04-01 | F188: 2022-04-30 | G188: NTSI | H188: 2022-04-01 | I188: 2022-04-30 | J188: 公司-吸塵器-進貨達成獎勵(目標5M獎勵2%)-04~04 | K188: TW002718001B | L188: 全國電子 | M188: TW | N188: MMCS-全國 | O188: % | P188: 進貨達成獎勵(目標5M獎勵2%) | R188: 吸塵器 | T188: 0
A189: DCS_TT | B189: DCS_TT | C189: TT-NTSI-20220330-0063 | D189: KAPMA2022032801-RF-Dealer-QtySIARebate-202204 | E189: 2022-04-01 | F189: 2022-04-30 | G189: NTSI | H189: 2022-04-01 | I189: 2022-04-30 | J189: 公司-冰箱-台折(3台2%，5台2.5%，8台3%)部分空調店另計-04~04 | K189: DCS_TT | L189: DCS_TT | M189: TW | N189: DCS_TT | O189: % | P189: 台折(3台2%，5台2.5%，8台3%)部分空調店另計 | R189: 冰箱 | T189: 0
A190: DLC_TT | B190: DLC_TT | C190: TT-NTSI-20220330-0063 | D190: KAPMA2022032801-RF-Dealer-QtySIARebate-202204 | E190: 2022-04-01 | F190: 2022-04-30 | G190: NTSI | H190: 2022-04-01 | I190: 2022-04-30 | J190: 公司-冰箱-台折(3台2%，5台2.5%，8台3%)部分空調店另計-04~04 | K190: DLC_TT | L190: DLC_TT | M190: TW | N190: DLC_TT | O190: % | P190: 台折(3台2%，5台2.5%，8台3%)部分空調店另計 | R190: 冰箱 | T190: 0
A191: SPD_TT | B191: SPD_TT | C191: TT-NTSI-20220330-0063 | D191: KAPMA2022032801-RF-Dealer-QtySIARebate-202204 | E191: 2022-04-01 | F191: 2022-04-30 | G191: NTSI | H191: 2022-04-01 | I191: 2022-04-30 | J191: 公司-冰箱-台折(3台2%，5台2.5%，8台3%)部分空調店另計-04~04 | K191: SPD_TT | L191: SPD_TT | M191: TW | N191: SPD_TT | O191: % | P191: 台折(3台2%，5台2.5%，8台3%)部分空調店另計 | R191: 冰箱 | T191: 0
A192: TW002347001B | B192: TW002347001B | C192: TT-NTSI-20220330-0064 | D192: KAPMA2022032801-RF-Dealer-QtySIARebate-WholesalesStore-202204 | E192: 2022-04-01 | F192: 2022-04-30 | G192: NTSI | H192: 2022-04-01 | I192: 2022-04-30 | J192: 公司-冰箱-批店上下門台折(15台2%，20台2.5%)-04~04 | K192: TW002347001B | L192: 得興電器 | M192: TW | N192: 桃竹營銷處 | O192: % | P192: 批店上下門台折(15台2%，20台2.5%) | R192: RFBFBF | T192: 0
A193: TW002347001B | B193: TW002347001B | C193: TT-NTSI-20220330-0064 | D193: KAPMA2022032801-RF-Dealer-QtySIARebate-WholesalesStore-202204 | E193: 2022-04-01 | F193: 2022-04-30 | G193: NTSI | H193: 2022-04-01 | I193: 2022-04-30 | J193: 公司-冰箱-批店上下門台折(15台2%，20台2.5%)-04~04 | K193: TW002347001B | L193: 得興電器 | M193: TW | N193: 桃竹營銷處 | O193: % | P193: 批店上下門台折(15台2%，20台2.5%) | R193: RFTMTM | T193: 0
A194: TW002351001B | B194: TW002351001B | C194: TT-NTSI-20220330-0064 | D194: KAPMA2022032801-RF-Dealer-QtySIARebate-WholesalesStore-202204 | E194: 2022-04-01 | F194: 2022-04-30 | G194: NTSI | H194: 2022-04-01 | I194: 2022-04-30 | J194: 公司-冰箱-批店上下門台折(15台2%，20台2.5%)-04~04 | K194: TW002351001B | L194: 雅光 | M194: TW | N194: 台北營銷處 | O194: % | P194: 批店上下門台折(15台2%，20台2.5%) | R194: RFBFBF | T194: 0
A195: TW002351001B | B195: TW002351001B | C195: TT-NTSI-20220330-0064 | D195: KAPMA2022032801-RF-Dealer-QtySIARebate-WholesalesStore-202204 | E195: 2022-04-01 | F195: 2022-04-30 | G195: NTSI | H195: 2022-04-01 | I195: 2022-04-30 | J195: 公司-冰箱-批店上下門台折(15台2%，20台2.5%)-04~04 | K195: TW002351001B | L195: 雅光 | M195: TW | N195: 台北營銷處 | O195: % | P195: 批店上下門台折(15台2%，20台2.5%) | R195: RFTMTM | T195: 0
A196: TW004758001B | B196: TW004758001B | C196: TT-NTSI-20220330-0064 | D196: KAPMA2022032801-RF-Dealer-QtySIARebate-WholesalesStore-202204 | E196: 2022-04-01 | F196: 2022-04-30 | G196: NTSI | H196: 2022-04-01 | I196: 2022-04-30 | J196: 公司-冰箱-批店上下門台折(15台2%，20台2.5%)-04~04 | K196: TW004758001B | L196: 同勝電器 | M196: TW | N196: 高屏營銷處 | O196: % | P196: 批店上下門台折(15台2%，20台2.5%) | R196: RFBFBF | T196: 0
A197: TW004758001B | B197: TW004758001B | C197: TT-NTSI-20220330-0064 | D197: KAPMA2022032801-RF-Dealer-QtySIARebate-WholesalesStore-202204 | E197: 2022-04-01 | F197: 2022-04-30 | G197: NTSI | H197: 2022-04-01 | I197: 2022-04-30 | J197: 公司-冰箱-批店上下門台折(15台2%，20台2.5%)-04~04 | K197: TW004758001B | L197: 同勝電器 | M197: TW | N197: 高屏營銷處 | O197: % | P197: 批店上下門台折(15台2%，20台2.5%) | R197: RFTMTM | T197: 0
A198: TW005301001B | B198: TW005301001B | C198: TT-NTSI-20220330-0064 | D198: KAPMA2022032801-RF-Dealer-QtySIARebate-WholesalesStore-202204 | E198: 2022-04-01 | F198: 2022-04-30 | G198: NTSI | H198: 2022-04-01 | I198: 2022-04-30 | J198: 公司-冰箱-批店上下門台折(15台2%，20台2.5%)-04~04 | K198: TW005301001B | L198: 南霸天電器 | M198: TW | N198: 高屏營銷處 | O198: % | P198: 批店上下門台折(15台2%，20台2.5%) | R198: RFBFBF | T198: 0
A199: TW005301001B | B199: TW005301001B | C199: TT-NTSI-20220330-0064 | D199: KAPMA2022032801-RF-Dealer-QtySIARebate-WholesalesStore-202204 | E199: 2022-04-01 | F199: 2022-04-30 | G199: NTSI | H199: 2022-04-01 | I199: 2022-04-30 | J199: 公司-冰箱-批店上下門台折(15台2%，20台2.5%)-04~04 | K199: TW005301001B | L199: 南霸天電器 | M199: TW | N199: 高屏營銷處 | O199: % | P199: 批店上下門台折(15台2%，20台2.5%) | R199: RFTMTM | T199: 0
A200: TW005662001B | B200: TW005662001B | C200: TT-NTSI-20220330-0064 | D200: KAPMA2022032801-RF-Dealer-QtySIARebate-WholesalesStore-202204 | E200: 2022-04-01 | F200: 2022-04-30 | G200: NTSI | H200: 2022-04-01 | I200: 2022-04-30 | J200: 公司-冰箱-批店上下門台折(15台2%，20台2.5%)-04~04 | K200: TW005662001B | L200: 統勝電器有限公司 | M200: TW | N200: D | O200: % | P200: 批店上下門台折(15台2%，20台2.5%) | R200: RFBFBF | T200: 0
... 4300 more rows
